Cogmind - Beta 12 @@@ ROGUE MODE // 2023.03.12 @ 04:50:58 Player: Savant Result: Heading to fleet! Performance ------------- Evolutions (9) 4500 Regions Visited (27) 5400 Robots Destroyed (354) 1770 Value Destroyed (20573) 20573 Prototype IDs (83) 1660 Alien Tech Used (13) 2600 Bonus (24965) 24965 TOTAL SCORE: 61468 Bonus ------- High Alert Combat Kills 3136 Follower Combat Kills 9145 Entered Garrisons 1800 Used RIF Installer 6000 Used Core Reset Matrix 3000 Win 3000 Friendly Fire -1116 Cogmind --------- Core Integrity 595/1600 Matter 137/300 Energy 99/100 System Corruption 10% Temperature Cool (0) Movement Rolling (190) Ox5 Location To Fleet Rendezvous Parts ------- > --- POWER (2) -------- Matter Drive > --- PROPULSION (4) --- Advanced Medium Treads Advanced Medium Treads Centrium Leg High-density Centrium Wheel (fused) > --- UTILITY (16) ----- Advanced Heat Sink High-capacity Storage Unit Experimental Optical Array Improved Targeting Computer Advanced Melee Analysis Suite Advanced Target Analyzer Improved Transmission Jammer Heavy Armor Plating Advanced Thermal Shield Thermal Defense Suite Antimissile System System Shield Experimental System Shield Experimental System Shield Advanced Component Analysis Suite > --- WEAPON (3) ------- Tri-rail Accelerator Linear Accelerator > --- INVENTORY (20) --- Fusion Compressor Micro Antimatter Reactor Cooled Field Propulsion Drive Improved Diametric Drive Quantum Capacitor Improved KE Penetrator Improved KE Penetrator Heavy Gauss Cannon Advanced Micro-nuke Launcher Peak State ------------ > --- POWER ------------ Compact Particle Reactor Improved Quantum Reactor > --- PROPULSION ------- Heavy Siege Treads Wheel High-density Centrium Wheel > --- UTILITY ---------- Experimental Heat Sink High-capacity Storage Unit Experimental Optical Array Advanced Sensor Array Experimental Signal Interpreter Improved Targeting Computer Advanced Target Analyzer Improved Transmission Jammer Phase Armor Improved Hardlight Generator Improved Hacking Suite Experimental System Shield Experimental System Shield Authchip [R/Combat] Advanced Component Analysis Suite > --- WEAPON ----------- Advanced Micro-nuke Launcher Sigix Broadsword > --- INVENTORY -------- Compact Particle Reactor Matter Drive Advanced Medium Treads Advanced Medium Treads Advanced Medium Treads Advanced Medium Treads Cooled Field Propulsion Drive Advanced Heat Sink Advanced Melee Analysis Suite Advanced Force Field Advanced Recalibrator Transdimensional Reconstructor High-powered Transdimensional Reconstructor High-powered Transdimensional Reconstructor HERF Cannon Tri-rail Accelerator Heavy Gauss Cannon Advanced Remote Datajack [Rating: 207] Favorites ----------- Power Micro Antimatter Reactor Engine F-cell Engine Power Core Micro Fission Core Reactor Micro Antimatter Reactor Propulsion Improved Heavy Treads Treads Improved Heavy Treads Leg Biometal Leg Wheel Compact Wheel Hover Unit Improved Antigrav System Utility High-capacity Storage Unit Device Experimental Sensor Array Storage High-capacity Storage Unit Processor Advanced Signal Interpreter Hackware Relay Coupler [Grunt] Protection Layered Medium Armor Plating Artifact Phase Armor Weapon Advanced Remote Datajack Energy Gun High-powered Field Laser Energy Cannon Cooled Phase Cannon Ballistic Gun Railgun Ballistic Cannon Assault Cannon Launcher Missile Launcher Special Weapon Advanced Remote Datajack Impact Weapon Shock Maul Slashing Weapon Ionic Axe Special Melee Weapon Improved Datajack Build | -11 -10 -10 -10 -9 -8 -8 -7 -7 -7 -7 -6 -6 -6 -6 -5 -5 -5 -5 -5 -5 -4 -4 -3 -3 -3 -2 -1 ------- Run | Jun Mat Min Exi Min Mat Gar Fac Gar Fac Gar Fac Gar Fac Gar Fac Gar Fac Gar Fac Gar Fac Gar Res Qua Sec Res Acc Slots Evolved 18 | . . . . . 4 . 2 . . . 2 . . . 2 . . . . . 2 . 2 . . 2 2 Power 1 | . . . . . . . . . . . . . . . . . . . . . . . . . . . 1 Propulsion 2 | . . . . . . . . . . . . . . . . . . . . . . . . . . 2 . Utility 14 | . . . . . 4 . 2 . . . 2 . . . 2 . . . . . 2 . 1 . . . 1 Weapon 1 | . . . . . . . . . . . . . . . . . . . . . . . 1 . . . . Parts Attached 804 | 8 10 . 2 2 68 28 31 29 38 17 33 27 10 15 37 27 32 23 30 30 88 19 11 64 50 25 50 Power 39 | 2 2 . . . 4 . 1 1 1 . 1 . . 2 . . 4 1 2 1 4 2 1 2 3 . 5 Engine 8 | 2 1 . . . 1 . . 1 1 . 1 . . . . . . . 1 . . . . . . . . Core 16 | . 1 . . . 3 . 1 . . . . . . . . . 4 . 1 1 3 1 . . . . 1 Reactor 15 | . . . . . . . . . . . . . . 2 . . . 1 . . 1 1 1 2 3 . 4 Propulsion 46 | 3 . . . . 11 6 1 2 . . . 1 . . 1 2 . . 3 . 3 1 . 2 1 5 4 Treads 32 | 2 . . . . 9 2 . 2 . . . 1 . . 1 2 . . 3 . 3 1 . 2 1 1 2 Leg 2 | . . . . . . . . . . . . . . . . . . . . . . . . . . 1 1 Wheel 11 | 1 . . . . 2 4 1 . . . . . . . . . . . . . . . . . . 2 1 Hover 1 | . . . . . . . . . . . . . . . . . . . . . . . . . . 1 . Flight . | . . . . . . . . . . . . . . . . . . . . . . . . . . . . Utility 332 | 1 5 . 1 1 26 8 13 10 16 5 16 15 7 8 23 11 12 10 18 14 30 12 6 21 19 8 16 Device 105 | . . . . . 10 1 4 2 7 . 9 2 5 . 2 . 2 . 9 . 12 . 3 10 9 7 11 Storage 13 | 1 3 . . 1 1 . . . . . . . . . . . . . . 1 1 . 1 . 3 . 1 Processor 12 | . . . . . 1 . 3 1 . . 1 . . . . . . . . . 1 . . . 3 . 2 Hackware 111 | . . . . . 1 1 4 4 7 3 5 8 2 6 14 8 5 7 6 7 7 8 2 3 2 . 1 Protection 86 | . 2 . 1 . 13 6 2 3 2 2 1 5 . 2 7 3 5 3 3 6 9 4 . 5 1 . 1 Artifact 5 | . . . . . . . . . . . . . . . . . . . . . . . . 3 1 1 . Weapon 387 | 2 3 . 1 1 27 14 16 16 21 12 16 11 3 5 13 14 16 12 7 15 51 4 4 39 27 12 25 Energy Gun 16 | . . . . . 2 3 3 1 . . . 1 . . . . . . . . . . . . 2 . 4 Energy Cannon 66 | . . . . . 7 . . . 1 . . . . . . 1 4 3 2 3 15 1 4 14 4 3 4 Ballistic Gun 66 | 2 3 . . 1 7 4 4 6 7 4 5 5 1 2 4 4 . . . . . . . . 4 2 1 Ballistic Cannon 52 | . . . . . 7 . . . . . . . . . 1 2 2 2 . 4 7 1 . 6 7 3 10 Launcher 15 | . . . . . 1 1 . . 1 . 3 . . . 2 1 1 1 . . . . . . . 1 3 Special Weapon 92 | . . . . . . . 5 5 9 4 6 4 . 3 1 4 4 2 4 5 18 1 . 16 1 . . Impact Weapon 44 | . . . . . 3 5 3 4 3 4 2 1 2 . 5 2 5 4 . . . . . 1 . . . Slashing Weapon 33 | . . . . . . . . . . . . . . . . . . . 1 3 11 1 . 2 9 3 3 Piercing Weapon . | . . . . . . . . . . . . . . . . . . . . . . . . . . . . Special Melee Weapon 3 | . . . 1 . . 1 1 . . . . . . . . . . . . . . . . . . . . Unidentified Prototypes 15 | . . . . . 2 . . 1 1 . . . . . 2 . . . 2 . 2 . . 3 2 . . Corrupted Parts 1 | . . . . . . . . . . . . . . . . . . . . . . . . . 1 . . System Corruption 4 | . . . . . . . . . . . . . . . . . . . . . . . . . 4 . . Parts Lost 76 | . . . . . 21 6 . 2 . . . 3 . . 2 1 4 1 2 . 4 2 . 1 6 3 18 Power 10 | . . . . . 3 . . . . . . . . . . . 1 . 1 . 1 1 . . . . 3 Propulsion 11 | . . . . . 5 2 . . . . . . . . . . . . . . . . . . 1 1 2 Utility 39 | . . . . . 8 3 . 2 . . . 2 . . 1 1 2 1 1 . 3 1 . 1 3 . 10 Weapon 16 | . . . . . 5 1 . . . . . 1 . . 1 . 1 . . . . . . . 2 2 3 Highest Loss Streak 12 | . . . . . 8 3 . 1 . . . 2 . . 1 1 2 1 1 . 1 1 . 1 3 1 12 To Critical Strikes 1 | . . . . . . . . . . . . . . . . . . . . . . . . . . . 1 Average Slot Usage (%) 92 | . 97 100 100 100 98 96 99 97 90 91 92 91 92 92 93 93 93 91 91 92 92 93 93 89 84 87 86 Engine 2 | . 3 14 14 14 . 9 3 6 7 7 6 6 6 5 . . . . . . . . . . . . . Core 1 | . 10 . . . 8 . 3 . . . . . . . . . 3 4 . 5 4 3 . . . . . Reactor 1 | . . . . . . . . . . . . . . . 5 5 1 . 2 . . 1 4 4 4 4 7 Treads 7 | . 28 28 28 28 16 9 7 7 7 7 6 6 6 6 5 5 5 5 5 5 5 5 4 4 4 1 4 Wheel 1 | . . . . . 1 8 7 5 . . . . . . . . . . . . . . . . . 7 7 Device 6 | . . . . . 17 15 7 2 4 . 5 . 5 6 5 5 5 1 2 . 5 . 3 3 6 15 24 Storage 6 | . 14 14 14 14 9 9 7 7 7 7 6 6 6 6 5 5 5 5 5 5 5 5 4 4 7 8 4 Processor 6 | . . . . . 8 9 13 14 9 7 6 6 6 6 5 5 5 5 5 5 5 5 4 4 9 17 15 Hackware 35 | . . . . . 8 1 16 26 36 38 43 46 46 42 48 48 49 49 53 52 50 54 53 47 37 17 10 Protection 5 | . 12 14 14 14 9 15 14 8 . 6 3 3 . 3 2 3 2 5 . 4 5 6 4 4 2 . . Ballistic Gun 4 | . 28 28 20 28 5 8 1 7 8 9 3 8 3 1 1 1 . . . . . . . . 1 3 . Special Weapon 3 | . . . . . . . 3 3 3 2 5 2 6 4 4 3 4 4 4 4 3 4 4 5 2 . . Impact Weapon 1 | . . . . . . 4 3 2 1 2 3 . 3 6 3 4 4 4 . . . . . . . . . Slashing Weapon 1 | . . . . . . . . . . . . . . . . . . . 4 3 4 4 4 2 3 3 3 Naked Turns . | . . . . . . . . . . . . . . . . . . . . . . . . . . . . Heaviest Build 158 | 13 22 22 22 32 70 78 80 80 72 72 75 74 63 71 71 96 81 108 75 94 86 74 77 100 117 121 158 Greatest Support 80 | 40 40 40 40 40 44 16 16 75 75 75 75 75 75 75 75 75 75 75 80 80 80 80 80 80 80 70 36 Greatest Overweight (x) 11 | . . . . . 5 4 7 7 . . . . . . . 1 1 1 . 1 1 . . 1 1 11 5 Average Overweight (x) . | . . . . . 1 3 4 4 . . . . . . . . . . . . . . . . . 5 4 Largest Inventory Capacity 20 | 8 20 10 10 15 20 20 20 20 20 20 20 20 20 20 20 20 20 20 20 20 20 20 20 20 20 20 20 Average Capacity 19 | 7 8 10 10 10 16 20 20 20 20 20 20 20 20 20 20 20 20 20 20 20 20 20 20 20 20 20 20 Most Carried 20 | 3 10 10 10 11 20 20 20 20 20 20 20 20 20 20 20 20 20 20 20 20 20 20 20 20 20 20 20 Average Carried 18 | 2 7 9 9 10 14 19 19 19 18 19 19 19 18 19 19 19 18 19 18 19 18 19 19 19 18 18 17 Final Capacity 20 | 8 10 10 10 15 20 20 20 20 20 20 20 20 20 20 20 20 20 20 20 20 20 20 20 20 20 20 20 Final Carried 20 | 3 10 10 10 11 17 20 19 20 19 20 19 20 18 20 18 20 18 20 20 20 20 20 19 20 18 19 10 Class Distribution -------------------- 60% | Botlord-Mutant 9% | Mutant 8% | Bothacker-Mutant 7% | Scavenger-Mutant 4% | Hacker-Assassin Dominant Class ---------------- Mutant | -10/Materials Mutant | -10/Mines Mutant | -10/Exiles Mutant | -9/Mines Mutant | -8/Materials Scavenger-Mutant | -8/Garrison Scavenger-Mutant | -7/Factory Bothacker-Mutant | -7/Garrison Bothacker-Mutant | -7/Factory Botlord-Mutant | -7/Garrison Botlord-Mutant | -6/Factory Botlord-Mutant | -6/Garrison Botlord-Mutant | -6/Factory Botlord-Mutant | -6/Garrison Botlord-Mutant | -5/Factory Botlord-Mutant | -5/Garrison Botlord-Mutant | -5/Factory Botlord-Mutant | -5/Garrison Botlord-Mutant | -5/Factory Botlord-Mutant | -5/Garrison Botlord-Mutant | -4/Factory Botlord-Mutant | -4/Garrison Botlord-Mutant | -3/Research Botlord-Mutant | -3/Quarantine Botlord-Mutant | -3/Section 7 Hacker-Assassin | -2/Research Alien-Gladiator | -1/Access Resources | -11 -10 -10 -10 -9 -8 -8 -7 -7 -7 -7 -6 -6 -6 -6 -5 -5 -5 -5 -5 -5 -4 -4 -3 -3 -3 -2 -1 ----------- Run | Jun Mat Min Exi Min Mat Gar Fac Gar Fac Gar Fac Gar Fac Gar Fac Gar Fac Gar Fac Gar Fac Gar Res Qua Sec Res Acc Matter Collected 17542 | 212 548 52 10 48 1255 611 405 764 684 337 666 635 193 274 1058 664 670 572 629 680 1633 584 250 1419 1231 486 972 Remotely . | . . . . . . . . . . . . . . . . . . . . . . . . . . . . Salvage Created 15171 | . 646 62 . 20 2087 1316 474 733 332 167 71 468 . 150 576 217 280 335 297 519 1325 152 102 1234 983 695 1930 Parts 824 | . 39 7 . 3 121 92 11 42 22 12 10 21 . 5 16 6 10 15 15 22 67 2 9 67 75 36 99 Haulers Intercepted 4 | . 1 . . . 2 . . . . . . . . . . . . . . . . . . . . 1 . Recyclers Shooed 17 | . 2 . . 1 4 . 2 . . . . . . . . . . . 2 . 3 . . . . 2 1 Parts Field Recycled . | . . . . . . . . . . . . . . . . . . . . . . . . . . . . Retrieved Matter . | . . . . . . . . . . . . . . . . . . . . . . . . . . . . Parts Self-Destructed . | . . . . . . . . . . . . . . . . . . . . . . . . . . . . Prevented . | . . . . . . . . . . . . . . . . . . . . . . . . . . . . Kills | -11 -10 -10 -10 -9 -8 -8 -7 -7 -7 -7 -6 -6 -6 -6 -5 -5 -5 -5 -5 -5 -4 -4 -3 -3 -3 -2 -1 ------- Run | Jun Mat Min Exi Min Mat Gar Fac Gar Fac Gar Fac Gar Fac Gar Fac Gar Fac Gar Fac Gar Fac Gar Res Qua Sec Res Acc Combat Hostiles Destroyed 266 | . 13 2 . 1 43 30 2 9 8 5 1 8 . 2 6 6 8 9 1 11 18 2 2 19 17 8 35 Melee 32 | . . . . . . . . . . . . . . . . . . . . 2 . . . 8 6 2 14 Guns 92 | . 13 2 . 1 10 26 2 9 8 5 1 8 . 2 2 . . . . . . . . . 2 1 . Cannons 108 | . . . . . 28 . . . . . . . . . 1 5 4 5 1 9 18 2 2 11 9 4 9 AOE 30 | . . . . . 5 4 . . . . . . . . 3 1 2 3 . . . . . . . 1 11 Classes Destroyed 21 | . 6 1 . . 9 2 . . . 1 . . . . . 1 . . 1 . . . . . . . . Worker 23 | . 1 . . . . . 4 . . . 1 . . . 3 . . . 3 . 5 . . 2 2 1 1 Builder 16 | . . 1 . . 1 . . . . . 2 . . . . . 1 . . . 2 . . 1 5 . 3 Tunneler 1 | . . . . . . . . . . . . . . . . . . . 1 . . . . . . . . Hauler 4 | . 1 . . . 2 . . . . . . . . . . . . . . . . . . . . 1 . Recycler 22 | . 1 . . . 4 . 4 . . . . . . . 2 . . . 1 . 3 . . 2 . 2 3 Mechanic 2 | . . . . . 1 . . . . . . . . . . . . . . . 1 . . . . . . Operator 7 | . 1 . . . 3 . . . . . . . . . . . . . 2 . . . . 1 . . . Watcher 7 | . . . . . 2 1 . . . . . . . . . . . . . . . . . . 1 . 3 Swarmer 56 | . 3 2 . 1 10 4 1 1 2 3 . . . . 3 . . 2 . 1 . 1 3 2 . . 17 Cutter 5 | . . . . . . 3 . 1 . . . 1 . . . . . . . . . . . . . . . Grunt 65 | . 10 . . . 17 13 1 2 3 1 . 6 . . 2 4 2 1 . 2 . . . . 1 . . Brawler 5 | . . . . . 1 . . 1 1 . . . . . . . . . . 1 . 1 . . . . . Duelist 5 | . . . . . 3 . . . . . . . . . . . 1 . . . 1 . . . . . . Protector 2 | . . . . . 1 . . . . . . 1 . . . . . . . . . . . . . . . Sentry 28 | . . . . . 7 6 . 1 . . 1 . . 2 . . . 2 . 2 3 . . . . 2 2 Demolisher 1 | . . . . . . . . . . 1 . . . . . . . . . . . . . . . . . Specialist 2 | . . . . . 2 . . . . . . . . . . . . . . . . . . . . . . Hunter 11 | . . . . . 2 1 . . . . . . . . . . . 1 . . 2 . . . 1 2 2 Programmer 88 | . . . . . . 3 . 4 2 . . 1 . . 2 1 4 3 1 5 12 . . 18 14 4 14 Heavy 2 | . . . . . 1 . . . . . . . . . . . 1 . . . . . . . . . . Behemoth 1 | . . . . . . . . . . . . . . . . 1 . . . . . . . . . . . S7 Guard 1 | . . . . . . . . . . . . . . . . . . . . . . . . . 1 . . Best Kill Streak 8 | . 6 2 . 1 8 6 6 2 2 2 3 3 . 1 3 4 4 3 2 3 4 1 2 3 4 4 6 Combat Bots Only 8 | . 4 2 . 1 8 6 1 2 2 2 1 3 . 1 3 4 4 3 1 3 4 1 2 3 3 2 5 Max Kills in Single Turn 3 | . 2 2 . 1 3 2 1 1 1 1 2 1 . 1 3 1 1 3 1 1 2 1 1 1 2 1 3 Gunslinging 1 | . . 1 . . . . . . . . . . . . . . . . . . . . . . . . . Exploded 3 | . . . . . 3 2 . . . . . . . . 3 1 1 3 . . . . . . . 1 3 Melee 1 | . . . . . . . . . . . . . . . . . . . . 1 . . . 1 1 1 1 Uniques/NPCs Destroyed . | . . . . . . . . . . . . . . . . . . . . . . . . . . . . Combat | -11 -10 -10 -10 -9 -8 -8 -7 -7 -7 -7 -6 -6 -6 -6 -5 -5 -5 -5 -5 -5 -4 -4 -3 -3 -3 -2 -1 -------- Run | Jun Mat Min Exi Min Mat Gar Fac Gar Fac Gar Fac Gar Fac Gar Fac Gar Fac Gar Fac Gar Fac Gar Res Qua Sec Res Acc Damage Taken 26300 | . 558 99 . 19 3622 1352 113 482 557 258 387 916 50 250 358 630 825 533 337 569 1703 407 417 2632 3300 1873 4053 Core 3207 | . 50 18 . . 308 143 14 33 59 24 28 124 . 15 46 99 91 45 26 28 252 23 20 315 314 468 664 Absorbed by Shields 2560 | . . . . . . 154 9 40 . 3 66 96 . 122 166 318 336 464 46 . 160 40 . . . . 540 Reduced by Siege Mode 712 | . . . . . . . . . . . . 4 . . . 13 30 25 . 10 155 . . 84 306 80 5 Redirected to Core 1024 | . . . . . . . . . . . . . . . . . . . . . . . . 158 13 316 537 Redirected to Shielding 116 | . 9 . . . . . . . . . . . . . . . . . . . . . . . 107 . . Regen/Repaired (Parts) 5628 | . . . . . 77 . . . 101 104 171 65 . . 611 . . . 180 . 1316 . 126 1293 753 249 582 Core Remaining (%) 63 | 100 . . . 72 . 18 . . . 81 . . . 80 . . . . . 66 . 76 . . 41 61 37 Volleys Fired 1303 | . 49 7 . 3 146 91 41 47 46 18 57 51 14 29 68 47 59 44 41 36 121 28 25 94 58 23 60 Largest 2 | . 2 2 . 2 2 2 2 2 2 2 2 2 1 1 1 1 1 1 1 1 2 2 1 1 2 2 2 Hottest 375 | . 40 40 . 40 150 108 108 98 70 70 70 70 40 40 83 83 120 120 120 120 160 100 40 83 375 338 126 Shots Fired 1752 | . 98 14 . 6 280 174 60 83 62 28 58 73 15 29 68 48 58 44 41 38 133 31 25 97 71 39 79 Gun 711 | . 98 14 . 6 100 171 38 74 32 23 2 61 4 9 19 7 . . . . . . . . 29 18 6 Cannon 540 | . . . . . 177 . . . . . . . . . 1 14 20 18 4 24 91 12 7 60 30 16 66 Launcher 32 | . . . . . 3 3 . . . . 7 . . . 2 1 3 1 . . . . . . . 5 7 Special 469 | . . . . . . . 22 9 30 5 49 12 11 20 46 26 35 25 37 14 42 19 18 37 12 . . Kinetic 886 | . 98 14 . 6 160 117 19 58 32 23 2 61 4 9 20 21 11 10 . 18 30 9 . 25 52 30 57 Thermal 339 | . . . . . 117 54 19 6 . . . . . . . . 9 8 4 6 61 3 7 35 6 4 . Explosive 32 | . . . . . 3 3 . . . . 7 . . . 2 1 3 1 . . . . . . . 5 7 Electromagnetic 26 | . . . . . . . . 10 . . . . . . . . . . . . . . . . 1 . 15 Robot Hit Streak 46 | . 12 4 . 3 24 46 13 21 10 4 10 9 8 14 19 14 16 19 9 14 15 12 13 19 16 21 16 Robot Miss Streak 7 | . 5 1 . 2 4 5 4 2 3 3 4 2 3 7 3 2 5 1 2 1 3 1 2 2 2 3 4 Penetration Max 2 | . . . . . . 1 . 1 . . . . . . 1 1 . . . . . . . . 1 2 . Secondary Targets 9 | . 2 1 . . 1 2 . 1 1 1 . . . . . . . . . . . . . . . . . Max Gunslinging Chain 1 | . 1 1 . . 1 1 . 1 1 1 . . . . . . . . . . . . . . . . . Shots Hit Robots 1396 | . 66 10 3 3 193 154 41 64 42 15 41 44 11 20 56 36 43 40 41 33 99 26 16 87 81 45 86 Core Hits 497 | . 28 3 . 2 85 86 12 27 9 6 6 16 1 5 15 7 6 8 4 9 26 2 2 22 33 22 55 Critical Kills 12 | . 1 . . . 1 . 1 . . . . 1 . 2 2 . . . . . . . . . 2 2 . Critical Parts Destroyed 23 | . 1 . . . 1 2 . 1 . . . . 1 1 5 1 4 . . . . . . . 3 3 . Critical Strikes 74 | . 2 . . . 8 2 1 3 . . . 1 1 3 7 2 4 3 . . 2 2 . 5 11 7 10 Burn 3 | . . . . . 2 . . 1 . . . . . . . . . . . . . . . . . . . Meltdown 1 | . . . . . 1 . . . . . . . . . . . . . . . . . . . . . . Destroy 34 | . 2 . . . 1 2 1 1 . . . 1 1 3 6 1 . . . . . . . . 9 6 . Blast 25 | . . . . . 4 . . . . . . . . . . 1 . 3 . . 1 1 . 5 2 1 7 Corrupt 1 | . . . . . . . . 1 . . . . . . . . . . . . . . . . . . . Smash 5 | . . . . . . . . . . . . . . . 1 . 4 . . . . . . . . . . Sever 5 | . . . . . . . . . . . . . . . . . . . . . 1 1 . . . . 3 Melee Attacks 494 | . . . 3 . 3 45 14 12 4 8 13 . 3 5 22 4 27 5 13 6 60 5 4 65 79 20 74 Impact 156 | . . . . . 3 38 12 12 4 8 13 . 3 5 22 4 27 5 . . . . . . . . . Slashing 326 | . . . . . . . . . . . . . . . . . . . 13 6 60 5 4 65 79 20 74 Piercing . | . . . . . . . . . . . . . . . . . . . . . . . . . . . . Sneak Attacks 71 | . . . 3 . . 7 2 . . . . . . . 6 . 1 2 7 3 14 1 . 7 8 5 5 Combat Hostiles 8 | . . . . . . . . . . . . . . . 1 . . 2 . 3 . 1 . . 1 . . Follow-up Attacks . | . . . . . . . . . . . . . . . . . . . . . . . . . . . . Damage Inflicted 47086 | . 743 131 . 54 4624 2400 557 1437 462 302 258 876 25 69 1501 1106 1665 1494 838 1634 4951 475 147 4805 5350 4038 7144 Guns 9350 | . 742 131 . 54 1176 2128 557 1437 462 302 23 876 25 69 136 59 . . . . . . . . 577 440 156 Cannons 19532 | . . . . . 2926 . . . . . . . . . 71 916 904 1088 145 1286 3379 265 147 2364 2391 1410 2240 Explosions 5010 | . . . . . 522 237 . . . . 235 . . . 642 131 238 223 . . 175 . . . . 795 1812 Melee 13100 | . . . . . . 35 . . . . . . . . 613 . 523 183 676 348 1381 210 . 2420 2382 1393 2936 Ramming 94 | . 1 . . . . . . . . . . . . . 39 . . . 17 . 16 . . 21 . . . Kinetic 21114 | . 742 131 . 54 2290 1044 196 1167 462 302 23 876 25 69 207 975 904 836 . 1071 2370 158 . 2248 2118 1050 1796 Thermal 7025 | . . . . . 1812 1084 361 84 . . . . . . . . 43 252 145 215 1009 107 147 116 850 800 . Explosive 4967 | . . . . . 522 237 . . . . 235 . . . 642 131 195 223 . . 175 . . . . 795 1812 Electromagnetic 786 | . . . . . . . . 186 . . . . . . . . . . . . . . . . . . 600 Impact 1354 | . . . . . . 35 . . . . . . . . 613 . 523 183 . . . . . . . . . Slashing 11746 | . . . . . . . . . . . . . . . . . . . 676 348 1381 210 . 2420 2382 1393 2936 Piercing . | . . . . . . . . . . . . . . . . . . . . . . . . . . . . Highest Corruption 27 | . . . . . . 1 1 2 3 . . 1 2 2 2 1 5 7 7 8 14 18 . 19 27 5 10 Average Corruption 6 | . . . . . . 1 1 1 2 . . 1 2 2 1 1 2 4 7 7 7 17 . 14 15 1 5 Corruption Purged 24 | . . . . . . . . . 3 . . 1 . . 2 . 5 . . . . . . 13 . . . Corruption Blocked 23 | . . . . . . . . . . . . . . . . . 8 . . . . . . . 15 . . Effects 636 | . . . . . . 8 7 23 7 . . . 9 13 32 7 29 15 50 40 100 52 . 120 77 3 44 Message Errors 178 | . . . . . . 1 2 8 2 . . . 1 3 13 2 11 7 16 11 27 13 . 35 20 1 5 Matter Fused 158 | . . . . . . 1 3 5 3 . . . 4 2 6 2 8 3 7 10 31 7 . 31 20 1 14 Heat Flow Errors 74 | . . . . . . 2 1 2 1 . . . . 2 6 1 3 2 7 2 8 6 . 16 9 . 6 Energy Discharges 69 | . . . . . . . . 4 . . . . . 1 . . 1 1 6 6 12 9 . 13 11 1 4 Parts Rejected 5 | . . . . . . . . . . . . . . . . . 1 . . . 2 1 . 1 . . . Parts Fused 8 | . . . . . . . . . . . . . . 2 . . 1 . . 1 1 1 . 1 . . 1 Data Loss (minor) 79 | . . . . . . 2 1 2 1 . . . 3 3 6 . 1 1 10 6 7 11 . 10 9 . 6 Data Loss (major) 28 | . . . . . . 1 . . . . . . . . 1 1 2 . 2 2 9 2 . 3 3 . 2 Misfires 11 | . . . . . . . . . . . . . 1 . . 1 . . . 2 1 . . 4 . . 2 Alerts 11 | . . . . . . . . . . . . . . . . . . 1 2 . 1 1 . 3 2 . 1 Misdirections 6 | . . . . . . . . . . . . . . . . . . . . . 1 . . 2 1 . 2 Weapon Failures 9 | . . . . . . 1 . 2 . . . . . . . . 1 . . . . 1 . 1 2 . 1 Overload Shots . | . . . . . . . . . . . . . . . . . . . . . . . . . . . . Overflow Damage 6167 | . . . . . 74 . . . . . 2 . . . 270 110 275 229 255 492 1024 17 . 957 1022 500 940 Projectiles 1896 | . . . . . 54 . . . . . . . . . . 110 64 193 . 350 408 17 . 314 135 122 129 Explosions 203 | . . . . . 20 . . . . . 2 . . . 13 . . . . . . . . . . 19 149 Melee 4068 | . . . . . . . . . . . . . . . 257 . 211 36 255 142 616 . . 643 887 359 662 Knockbacks 99 | . . . . . 10 . . . . . . . . . 6 . 5 7 . 5 9 . . 11 23 4 19 Impact 11 | . . . . . . . . . . . . . . . 5 . 4 1 . . 1 . . . . . . Kinetic 79 | . . . . . 9 . . . . . . . . . . . 1 4 . 4 8 . . 10 20 4 19 Secondary 9 | . . . . . 1 . . . . . . . . . 1 . . 2 . 1 . . . 1 3 . . Self-Inflicted Damage 52 | . . . . . . . . . . . . . . . 52 . . . . . . . . . . . . Shots 1 | . . . . . . . . . . . . . . . 1 . . . . . . . . . . . . Rammed 8 | . 1 . . . . . . . . . . . . . 3 . . . 1 . 2 . . 1 . . . Targets Rammed 8 | . 1 . . . . . . . . . . . . . 3 . . . 1 . 2 . . 1 . . . Kicked . | . . . . . . . . . . . . . . . . . . . . . . . . . . . . Crushed . | . . . . . . . . . . . . . . . . . . . . . . . . . . . . Highest Temperature 385 | . 44 . . . 190 259 262 229 156 18 . 114 . 213 154 202 330 385 247 320 259 261 . 225 250 156 133 Average Temperature 76 | . 11 . . . 46 51 110 85 30 5 . 36 . 91 66 86 112 147 105 78 89 79 . 81 95 68 48 Received Heat Transfer 3482 | . 237 . . . 945 582 36 153 219 42 59 267 12 67 26 105 120 62 57 72 54 42 9 . 174 81 61 Effects 3 | . . . . . . . 3 . . . . . . . . . . . . . . . . . . . . Energy Bleed 1 | . . . . . . . 1 . . . . . . . . . . . . . . . . . . . . Interference 2 | . . . . . . . 2 . . . . . . . . . . . . . . . . . . . . Siege Activations 34 | . . . . . . . . . . . . 1 . . . 2 2 2 . 3 8 . . 5 6 2 3 Total Turns 453 | . . . . . . . . . . . . 8 . . . 29 24 49 . 36 87 . . 70 83 42 25 Longest Duration 27 | . . . . . . . . . . . . 8 . . . 25 22 27 . 21 20 . . 21 24 25 10 Robots Corrupted 1 | . . . . . . . . . . . . . . . . . . . . . . . . . . . 1 Combat Hostiles 1 | . . . . . . . . . . . . . . . . . . . . . . . . . . . 1 Parts Fried 15 | . . . . . . 2 . . . . . . . . 6 . 2 1 . . . . . . . . 4 Impact Corruptions 23 | . . . . . . 1 . . . . . . . . 10 . 9 1 . . . . . 2 . . . Robots Melted 1 | . . . . . 1 . . . . . . . . . . . . . . . . . . . . . . Combat Hostiles . | . . . . . . . . . . . . . . . . . . . . . . . . . . . . Parts Melted 26 | . . . . . 11 2 . 2 1 . . . . 2 . . . . 5 . 2 . . . . . 1 Heat Transferred 8058 | . . . . . 2997 2345 631 185 . . . . . . . . 50 222 111 185 962 111 148 111 . . . Parts Sabotaged . | . . . . . . . . . . . . . . . . . . . . . . . . . . . . Parts Stolen . | . . . . . . . . . . . . . . . . . . . . . . . . . . . . Parts Stripped . | . . . . . . . . . . . . . . . . . . . . . . . . . . . . Power Chain Reactions . | . . . . . . . . . . . . . . . . . . . . . . . . . . . . Missiles Intercepted . | . . . . . . . . . . . . . . . . . . . . . . . . . . . . Alert | -11 -10 -10 -10 -9 -8 -8 -7 -7 -7 -7 -6 -6 -6 -6 -5 -5 -5 -5 -5 -5 -4 -4 -3 -3 -3 -2 -1 ------- Run | Jun Mat Min Exi Min Mat Gar Fac Gar Fac Gar Fac Gar Fac Gar Fac Gar Fac Gar Fac Gar Fac Gar Res Qua Sec Res Acc Peak Influence 1653 | . 310 86 . 119 744 1488 840 837 520 980 1322 1588 995 504 1398 1653 983 813 1065 1150 841 845 569 230 259 503 1044 Initial 978 | . . 60 . . . 485 781 120 438 88 514 925 833 144 264 978 867 266 426 532 603 196 474 78 105 119 295 Average 494 | . 121 63 . 91 349 1026 430 439 228 540 551 1246 616 383 480 1353 678 623 627 831 541 539 427 105 122 321 464 Maximum Alert Level 5 | . 1 . . . 3 4 3 3 2 3 4 4 3 2 4 5 3 3 3 4 3 3 2 1 1 2 3 Low Security (%) 26 | 100 77 100 . 100 18 . 29 35 58 10 . . . 8 29 . . . . . . 3 5 90 93 13 9 Level 1 21 | . 22 . . . 45 . 24 10 23 26 29 . 45 23 19 . 22 11 17 . 25 38 38 9 6 66 51 Level 2 25 | . . . . . 32 24 20 38 18 35 59 . . 68 10 . 26 51 50 26 56 20 55 . . 20 17 Level 3 18 | . . . . . 3 26 25 16 . 28 2 19 54 . 38 8 50 37 31 70 18 36 . . . . 22 Level 4 7 | . . . . . . 49 . . . . 8 80 . . 2 83 . . . 2 . . . . . . . Level 5 . | . . . . . . . . . . . . . . . . 8 . . . . . . . . . . . High Security . | . . . . . . . . . . . . . . . . . . . . . . . . . . . . Max Security . | . . . . . . . . . . . . . . . . . . . . . . . . . . . . Squads Dispatched 136 | . 3 1 . . 11 . 2 . 9 . 19 . 2 . 20 . 10 . 14 . 17 . 1 10 8 1 8 Investigation 28 | . 2 1 . . 1 . 1 . 2 . 4 . 1 . 4 . 4 . 3 . 3 . . . . . 2 Extermination 41 | . . . . . . . 1 . 3 . 3 . . . 4 . 2 . 2 . 6 . 1 7 5 1 6 Reinforcement 38 | . 1 . . . 7 . . . 1 . 3 . . . 5 . 2 . 8 . 5 . . 3 3 . . Assault 12 | . . . . . 1 . . . . . 2 . 1 . 3 . 2 . . . 3 . . . . . . Garrison 17 | . . . . . 2 . . . 3 . 7 . . . 4 . . . 1 . . . . . . . . Intercept . | . . . . . . . . . . . . . . . . . . . . . . . . . . . . Searches Triggered . | . . . . . . . . . . . . . . . . . . . . . . . . . . . . Construction Impeded 3 | . . . . . . . . . . . 1 . . . . . . . 1 . . . . . 1 . . Haulers Reinforced 6 | . . . . . . . . . . . 1 . . . 1 . . . 1 . 2 . . . 1 . . Active Scanning Responses . | . . . . . . . . . . . . . . . . . . . . . . . . . . . . Cargo Convoy Interrupts 2 | . . . . . . . . . . . . . . . . . 1 . 1 . . . . . . . . Stealth | -11 -10 -10 -10 -9 -8 -8 -7 -7 -7 -7 -6 -6 -6 -6 -5 -5 -5 -5 -5 -5 -4 -4 -3 -3 -3 -2 -1 --------- Run | Jun Mat Min Exi Min Mat Gar Fac Gar Fac Gar Fac Gar Fac Gar Fac Gar Fac Gar Fac Gar Fac Gar Res Qua Sec Res Acc Distress Signals 18 | . 3 . . . 2 1 . . 1 . 3 . . . 4 . . . 3 . 1 . . . . . . Communications Jammed 263 | . . . . . . . . . . . . . . . 25 . 48 . 18 . 85 . 1 34 . 18 34 Distress Signals 257 | . . . . . . . . . . . . . . . 25 . 48 . 13 . 84 . 1 34 . 18 34 Times Spotted 790 | . 21 5 . 4 63 31 11 23 32 24 41 32 8 13 52 29 50 26 48 24 69 16 15 41 23 27 62 Peak Tracking Total 15 | . 5 3 . 4 8 6 3 4 4 4 5 6 5 3 6 7 7 7 4 4 6 3 5 7 4 15 6 Tactical Retreats 13 | . . . . . 1 . . 1 . . 1 . . . . 3 . . 1 . 2 . . . 1 1 2 Traps | -11 -10 -10 -10 -9 -8 -8 -7 -7 -7 -7 -6 -6 -6 -6 -5 -5 -5 -5 -5 -5 -4 -4 -3 -3 -3 -2 -1 ------- Run | Jun Mat Min Exi Min Mat Gar Fac Gar Fac Gar Fac Gar Fac Gar Fac Gar Fac Gar Fac Gar Fac Gar Res Qua Sec Res Acc Traps Triggered 27 | . 1 . . . . 6 . 1 . 1 . . 1 1 2 . 3 1 . . 3 2 1 3 . 1 . Indirectly . | . . . . . . . . . . . . . . . . . . . . . . . . . . . . Trap Hack Attempts . | . . . . . . . . . . . . . . . . . . . . . . . . . . . . Triggered . | . . . . . . . . . . . . . . . . . . . . . . . . . . . . Disarmed 6 | . . . . . . . . . . . . . . . 6 . . . . . . . . . . . . Reprogrammed 15 | . . . . . 6 . . . . . . . . . . . 4 . . . 5 . . . . . . Reused 1 | . . . . . . . . . . . . . . . . . 1 . . . . . . . . . . Traps Extracted . | . . . . . . . . . . . . . . . . . . . . . . . . . . . . Installed . | . . . . . . . . . . . . . . . . . . . . . . . . . . . . Triggered 5 | . . . . . . . . . . . . . . . . . 4 . . . 1 . . . . . . Machines | -11 -10 -10 -10 -9 -8 -8 -7 -7 -7 -7 -6 -6 -6 -6 -5 -5 -5 -5 -5 -5 -4 -4 -3 -3 -3 -2 -1 ---------- Run | Jun Mat Min Exi Min Mat Gar Fac Gar Fac Gar Fac Gar Fac Gar Fac Gar Fac Gar Fac Gar Fac Gar Res Qua Sec Res Acc Machines Disabled 107 | . . . . . 3 1 2 3 4 5 15 4 2 3 4 4 4 2 11 3 13 3 . 8 10 2 1 Max in Single Turn 6 | . . . . . 1 1 1 2 1 1 1 1 . 1 . 1 2 1 . 1 6 1 . 1 1 1 1 Garrison Access 5 | . . . . . . . 1 . 1 . . . . . 1 . 1 . . . 1 . . . . . . Garrison Relay 23 | . . . . . . 1 . 3 . 3 . 2 . 3 . 4 . 2 . 2 . 3 . . . . . Machines Repaired . | . . . . . . . . . . . . . . . . . . . . . . . . . . . . Machines Sabotaged . | . . . . . . . . . . . . . . . . . . . . . . . . . . . . Overloaded Fab Kills . | . . . . . . . . . . . . . . . . . . . . . . . . . . . . Hacking | -11 -10 -10 -10 -9 -8 -8 -7 -7 -7 -7 -6 -6 -6 -6 -5 -5 -5 -5 -5 -5 -4 -4 -3 -3 -3 -2 -1 --------- Run | Jun Mat Min Exi Min Mat Gar Fac Gar Fac Gar Fac Gar Fac Gar Fac Gar Fac Gar Fac Gar Fac Gar Res Qua Sec Res Acc Machines Accessed 180 | . 9 1 1 . 10 2 9 3 18 1 7 2 5 3 20 3 14 2 10 1 20 3 5 11 10 1 9 Terminals 110 | . 7 . . . 5 2 5 3 12 1 3 2 1 3 7 3 9 2 5 1 9 3 5 7 9 . 6 Fabricators 19 | . . . . . . . . . 3 . 3 . 1 . 6 . 2 . 1 . 3 . . . . . . Repair Stations 7 | . . . . . 1 . . . 1 . . . . . 1 . 1 . . . 1 . . 2 . . . Recycling Units 14 | . 2 . . . 1 . 2 . . . . . 1 . 1 . 1 . 2 . 2 . . . . 1 1 Scanalyzers 10 | . . . . . 2 . . . . . . . 1 . 2 . . . 1 . 2 . . 1 1 . . Garrison Access 18 | . . . . . 1 . 2 . 2 . 1 . 1 . 3 . 1 . 1 . 3 . . 1 . . 2 Total Hacks 663 | . 33 1 4 . 27 4 26 8 59 2 22 6 18 5 75 9 47 7 40 5 91 10 19 63 50 4 28 Successful 372 | . 13 1 4 . 17 1 15 2 37 . 15 3 9 2 58 4 30 3 25 2 60 3 6 32 24 1 5 Failed 291 | . 20 . . . 10 3 11 6 22 2 7 3 9 3 17 5 17 4 15 3 31 7 13 31 26 3 23 Catastrophic 32 | . 1 . . . . . 1 1 1 1 . . . 1 1 1 2 1 2 1 5 1 2 2 2 1 5 Database Lockouts . | . . . . . . . . . . . . . . . . . . . . . . . . . . . . Manual 262 | . 16 . . . 8 . 15 1 26 2 14 2 8 3 33 4 24 3 15 3 35 1 3 31 4 . 11 Terminals 399 | . 29 . . . 15 4 16 8 43 2 11 6 2 5 31 9 28 7 23 5 49 10 19 28 27 . 22 Fabricators 70 | . . . . . . . . . 10 . 10 . 6 . 21 . 6 . 2 . 15 . . . . . . Repair Stations 44 | . . . . . 3 . . . 3 . . . . . 2 . 3 . . . 9 . . 24 . . . Recycling Units 45 | . 4 . . . 2 . 7 . . . . . 3 . 2 . 6 . 8 . 7 . . . . 4 2 Scanalyzers 63 | . . . . . 6 . . . . . . . 5 . 14 . . . 5 . 6 . . 4 23 . . Garrison Access 37 | . . . . . 1 . 3 . 3 . 1 . 2 . 5 . 4 . 2 . 5 . . 7 . . 4 Terminal Hacks 137 | . 9 1 4 . 5 1 4 2 17 . 2 3 . 2 15 4 12 3 6 2 20 3 5 6 9 . 2 Record 4 | . . . 4 . . . . . . . . . . . . . . . . . . . . . . . . Part Schematic 5 | . 2 . . . . . . . 1 . . . . . 2 . . . . . . . . . . . . Robot Schematic 6 | . . . . . . . . . 3 . . . . . 1 . . . . . 2 . . . . . . Robot Analysis 1 | . 1 . . . . . . . . . . . . . . . . . . . . . . . . . . Prototype ID Bank 12 | . 1 . . . 2 . . . 1 . . . . . 2 . 1 . 1 . 4 . . . . . . Open Door 9 | . . 1 . . . . . . . . . . . . . 1 . . . . . 1 1 . 5 . . Level Access Points 3 | . . . . . . . . . . . . . . . . . . . . . . . 1 1 . . 1 Branch Access Points 2 | . 1 . . . . . . . . . . . . . . . . . . . . . 1 . . . . Emergency Access Points 6 | . . . . . . . . 1 . . . 1 . . . 1 . 1 . 1 . 1 . . . . . Machine Index 4 | . . . . . 1 . . . . . . . . . . . 1 . 1 . 1 . . . . . . Terminal Index 9 | . . . . . . . 1 . 1 . . . . . 1 . 1 . 1 . 1 . . 1 1 . 1 Fabricator Index 3 | . . . . . . . 1 . 1 . . . . . 1 . . . . . . . . . . . . Scanalyzer Index 1 | . 1 . . . . . . . . . . . . . . . . . . . . . . . . . . Garrison Index 3 | . . . . . . . . . 1 . 1 . . . 1 . . . . . . . . . . . . Alert Level 1 | . 1 . . . . . . . . . . . . . . . . . . . . . . . . . . Unreport Threat 18 | . 1 . . . . . 1 . 2 . . . . . 2 . 5 . 2 . 4 . 1 . . . . Locate Traps 14 | . 1 . . . . . 1 . 3 . . . . . . . 2 . . . 2 . 1 2 2 . . Disarm Traps 1 | . . . . . . . . . . . . . . . 1 . . . . . . . . . . . . Reprogram Traps 4 | . . . . . 1 . . . . . . . . . . . 1 . . . 2 . . . . . . Maintenance Status 1 | . . . . . . . . . . . . . . . . . . . . . . . . 1 . . . Recall Investigation 1 | . . . . . . . . . . . . . . . . . . . . . . . . . 1 . . Recall Extermination 1 | . . . . . . . . . . . . . . . 1 . . . . . . . . . . . . Recall Reinforcements 1 | . . . . . . . . . . . . . . . . . . . 1 . . . . . . . . Recall Assault 2 | . . . . . . . . . . . . . . . 1 . . . . . 1 . . . . . . Hauler Manifests 4 | . . . . . . . . . 2 . . . . . 1 . . . . . 1 . . . . . . Registered Prototypes 1 | . . . . . . . . . . . . . . . . . . . . . 1 . . . . . . Zone Layout 8 | . . . . . 1 . . . 2 . 1 . . . 1 . 1 . . . 1 . . 1 . . . Garrison Registry 8 | . . . . . . 1 . 1 . . . 1 . 1 . 1 . 1 . 1 . 1 . . . . . Patrol Navigation 2 | . . . . . . . . . . . . 1 . . . 1 . . . . . . . . . . . Security Stations 2 | . . . . . . . . . . . . . . 1 . . . 1 . . . . . . . . . Fabricator Hacks 37 | . . . . . . . . . 6 . 5 . 2 . 12 . 2 . 2 . 8 . . . . . . Load Schematic 21 | . . . . . . . . . 4 . 3 . 1 . 7 . 1 . 1 . 4 . . . . . . Build 16 | . . . . . . . . . 2 . 2 . 1 . 5 . 1 . 1 . 4 . . . . . . Repair Station Hacks 24 | . . . . . 2 . . . 2 . . . . . 2 . 1 . . . 8 . . 9 . . . Scan Component 13 | . . . . . 1 . . . 1 . . . . . 1 . 1 . . . 4 . . 5 . . . Repair 11 | . . . . . 1 . . . 1 . . . . . 1 . . . . . 4 . . 4 . . . Recycling Unit Hacks 15 | . 2 . . . 1 . 2 . . . . . 1 . 1 . 2 . 2 . 2 . . . . 1 1 Report Inventory 12 | . 2 . . . 1 . 1 . . . . . 1 . 1 . 1 . 2 . 2 . . . . 1 . Retrieve Matter 2 | . . . . . . . . . . . . . . . . . 1 . . . . . . . . . 1 Retrieve Components 1 | . . . . . . . 1 . . . . . . . . . . . . . . . . . . . . Scanalyzer 41 | . . . . . 4 . . . . . . . 1 . 12 . . . 5 . 4 . . 1 14 . . Insert Component 20 | . . . . . 2 . . . . . . . 1 . 6 . . . 2 . 2 . . 1 6 . . Analyze 21 | . . . . . 2 . . . . . . . . . 6 . . . 3 . 2 . . . 8 . . Garrison Access Hacks 24 | . . . . . 1 . 3 . 3 . 1 . 1 . 5 . 2 . 2 . 5 . . 1 . . . Unlock Access 12 | . . . . . 1 . 1 . 1 . 1 . 1 . 2 . 1 . 1 . 2 . . 1 . . . Seal Access 4 | . . . . . . . 1 . 1 . . . . . 1 . . . . . 1 . . . . . . Coupler Status 8 | . . . . . . . 1 . 1 . . . . . 2 . 1 . 1 . 2 . . . . . . Unauthorized Hacks 94 | . 2 . . . 4 . 6 . 9 . 7 . 4 . 11 . 11 . 8 . 13 . 1 15 1 . 2 Terminals 50 | . . . . . 4 . 4 . 7 . 2 . . . 4 . 5 . 3 . 7 . 1 10 1 . 2 Track 4 | . . . . . . . . . . . . . . . . . 2 . . . . . . 2 . . . Assimilate 10 | . . . . . . . 1 . 2 . . . . . . . . . 2 . 2 . . 3 . . . Botnet 27 | . . . . . 3 . 2 . 4 . 2 . . . 3 . 2 . 1 . 2 . 1 4 1 . 2 Disrupt 1 | . . . . . . . . . . . . . . . . . . . . . 1 . . . . . . Operators 8 | . . . . . 1 . 1 . 1 . . . . . 1 . 1 . . . 2 . . 1 . . . Fabricators 20 | . . . . . . . . . 2 . 5 . 3 . 7 . . . . . 3 . . . . . . Report 3 | . . . . . . . . . . . 1 . 1 . 1 . . . . . . . . . . . . Prioritize 6 | . . . . . . . . . . . 1 . . . 2 . . . . . 3 . . . . . . Liberate 2 | . . . . . . . . . . . 1 . 1 . . . . . . . . . . . . . . Haulers 3 | . . . . . . . . . . . 1 . 1 . 1 . . . . . . . . . . . . Recompile 6 | . . . . . . . . . 2 . 1 . . . 3 . . . . . . . . . . . . Repair Stations 1 | . . . . . . . . . . . . . . . . . . . . . . . . 1 . . . Mechanics 1 | . . . . . . . . . . . . . . . . . . . . . . . . 1 . . . Recycling Units 16 | . 2 . . . . . 2 . . . . . . . . . 4 . 5 . 3 . . . . . . Monitor 1 | . . . . . . . . . . . . . . . . . 1 . . . . . . . . . . Reject 5 | . . . . . . . 1 . . . . . . . . . 1 . 2 . 1 . . . . . . Recyclers 2 | . . . . . . . . . . . . . . . . . 1 . 1 . . . . . . . . Mask 6 | . . . . . . . 1 . . . . . . . . . 1 . 2 . 2 . . . . . . Tunnel 2 | . 2 . . . . . . . . . . . . . . . . . . . . . . . . . . Scanalyzers 1 | . . . . . . . . . . . . . . . . . . . . . . . . 1 . . . Researchers 1 | . . . . . . . . . . . . . . . . . . . . . . . . 1 . . . Garrison Access 6 | . . . . . . . . . . . . . 1 . . . 2 . . . . . . 3 . . . Broadcast 1 | . . . . . . . . . . . . . . . . . . . . . . . . 1 . . . Decoy 3 | . . . . . . . . . . . . . 1 . . . 1 . . . . . . 1 . . . Watchers 2 | . . . . . . . . . . . . . . . . . 1 . . . . . . 1 . . . Data Cores Recovered 2 | . . . . . . . . . . . . . . . 1 . . . 1 . . . . . . . . Used 1 | . . . . . . . . . . . . . . . 1 . . . . . . . . . . . . Hacking Detections 144 | . 8 . . . 9 2 8 3 15 1 5 2 5 2 14 2 14 2 9 1 14 2 4 7 5 1 9 Full Trace Events 24 | . . . . . 2 1 1 1 . . 1 . 1 1 1 . 4 2 3 1 2 1 . . . . 2 Feedback Events 2 | . . . . . . . 1 . . . . . . . . . . . . . . . . . . . 1 Corruption 1 | . . . . . . . 1 . . . . . . . . . . . . . . . . . . . . Hackware Fried 1 | . . . . . . . . . . . . . . . . . . . . . . . . . . . 1 Feedback Blocked . | . . . . . . . . . . . . . . . . . . . . . . . . . . . . Robot Schematics Acquired 6 | . . . . . . . . . 3 . . . . . 1 . . . . . 2 . . . . . . Robots Built 25 | . . . . . . . . . 3 . 4 . 2 . 7 . . . 2 . 7 . . . . . . Authchips 7 | . . . . . . . . . 2 . 1 . . . 2 . . . . . 2 . . . . . . Time 842 | . . . . . . . . . 88 . 100 . 67 . 218 . 84 . 84 . 201 . . . . . . Total Robot Build Rating 124 | . . . . . . . . . 12 . 16 . 8 . 36 . . . 12 . 40 . . . . . . Part Schematics Acquired 17 | . 2 . . . . . . . 1 . . . . . 7 . . . 2 . 1 . . 2 2 . . Parts Built 2 | . . . . . . . . . . . . . . . 2 . . . . . . . . . . . . Authchips 2 | . . . . . . . . . . . . . . . 2 . . . . . . . . . . . . Time 79 | . . . . . . . . . . . . . . . 79 . . . . . . . . . . . . Total Part Build Rating 12 | . . . . . . . . . . . . . . . 12 . . . . . . . . . . . . Parts Repaired 11 | . . . . . 1 . . . 1 . . . . . 1 . . . . . 4 . . 4 . . . Time 509 | . . . . . 38 . . . 44 . . . . . 31 . . . . . 273 . . 123 . . . Parts Recycled . | . . . . . . . . . . . . . . . . . . . . . . . . . . . . Recycled Matter . | . . . . . . . . . . . . . . . . . . . . . . . . . . . . Retrieved Matter 69 | . . . . . . . . . . . . . . . . . 69 . . . . . . . . . . Retrieved Components 7 | . . . . . . . 7 . . . . . . . . . . . . . . . . . . . . Parts Scanalyzed 13 | . . . . . 1 . . . . . . . . . 5 . . . 2 . 2 . . . 3 . . Part Schematics Acquired 10 | . . . . . . . . . . . . . . . 5 . . . 2 . 1 . . . 2 . . Parts Damaged 3 | . . . . . . . . . . . . . . . 1 . . . 1 . . . . . 1 . . Bothacking | -11 -10 -10 -10 -9 -8 -8 -7 -7 -7 -7 -6 -6 -6 -6 -5 -5 -5 -5 -5 -5 -4 -4 -3 -3 -3 -2 -1 ------------ Run | Jun Mat Min Exi Min Mat Gar Fac Gar Fac Gar Fac Gar Fac Gar Fac Gar Fac Gar Fac Gar Fac Gar Res Qua Sec Res Acc Used RIF Installer 12 | . . . . . . 2 . 1 . 2 . 1 . 1 . 1 . 1 . 2 . 1 . . . . . Coupler Efficiency 1 | . . . . . . 1 . . . . . . . . . . . . . . . . . . . . . Command Fork 1 | . . . . . . . . 1 . . . . . . . . . . . . . . . . . . . Signal Jammer 1 | . . . . . . . . . . . . . . 1 . . . . . . . . . . . . . Zone Cloak 1 | . . . . . . . . . . 1 . . . . . . . . . . . . . . . . . Robot Detection 1 | . . . . . . . . . . . . . . . . . . 1 . . . . . . . . . Watcher Feeds 1 | . . . . . . . . . . . . . . . . 1 . . . . . . . . . . . Patrol Navigation 1 | . . . . . . . . . . . . . . . . . . . . 1 . . . . . . . Structural Interface 1 | . . . . . . . . . . 1 . . . . . . . . . . . . . . . . . Autooverride 1 | . . . . . . . . . . . . 1 . . . . . . . . . . . . . . . Autoassimilate 2 | . . . . . . . . . . . . . . . . . . . . 1 . 1 . . . . . Robots Hacked 258 | . . . 3 . . . 10 4 14 4 25 5 5 10 25 16 19 13 22 9 23 12 9 18 12 . . Non-combat 73 | . . . 3 . . . 7 . 3 1 14 1 1 . 11 . 3 . 4 . 10 . 1 11 3 . . Combat 185 | . . . . . . . 3 4 11 3 11 4 4 10 14 16 16 13 18 9 13 12 8 7 9 . . Autooverrided 22 | . . . . . . . . . . . . . 2 . 1 2 5 1 2 1 4 1 . 1 2 . . Autoassimilated 8 | . . . . . . . . . . . . . . . . . . . . . 3 4 . . 1 . . Robot Hacks Applied 277 | . . . 3 . . . 16 5 15 4 33 6 7 11 27 16 17 15 24 8 22 7 10 22 9 . . parse_system 20 | . . . 3 . . . 1 1 . . 1 1 . 1 . 2 4 1 . . 1 . 1 1 2 . . no_distress 2 | . . . . . . . 1 . . . 1 . . . . . . . . . . . . . . . . find_chute 2 | . . . . . . . . . . . . . . . 2 . . . . . . . . . . . . ignore_repairs 28 | . . . . . . . 2 . . . 11 . . . . . 1 . . . 2 . . 11 1 . . map_walls 1 | . . . . . . . . . . . 1 . . . . . . . . . . . . . . . . find_fabricator 4 | . . . . . . . 1 . . . . . . . 1 . . . 1 . 1 . . . . . . find_dsf 1 | . . . . . . . 1 . . . . . . . . . . . . . . . . . . . . drop_inventory 14 | . . . . . . . 2 . . . 3 . . . 3 . 1 . 1 . 3 . . 1 . . . find_recycling 2 | . . . . . . . 1 . . . 1 . . . . . . . . . . . . . . . . ignore_parts 5 | . . . . . . . 1 . . . . . . . 1 . . . . . 1 . . 1 1 . . find_station 1 | . . . . . . . . . . . . . . . 1 . . . . . . . . . . . . purge_threat 14 | . . . . . . . 2 . . . 2 . 4 . 1 . . . 2 . 2 . . 1 . . . find_terminals 2 | . . . . . . . . . . . 1 . . . . . . . 1 . . . . . . . . block_reporting 2 | . . . . . . . . . . . . . . . 1 . . . . . . . . . 1 . . map_route 2 | . . . . . . . . . 1 . . . . . . . . . . . 1 . . . . . . mark_security 1 | . . . . . . . 1 . . . . . . . . . . . . . . . . . . . . find_scanalyzer 1 | . . . . . . . . . . . . . . . . . . . . . . . . 1 . . . disable_scanner 3 | . . . . . . . . . . . . . . . . . . . . . . . . 2 1 . . find_garrison 1 | . . . . . . . . . . . 1 . . . . . . . . . . . . . . . . overload_power 1 | . . . . . . . . . . . . . . . . 1 . . . . . . . . . . . amplify_resonance 1 | . . . . . . . . . . . . . . . . . . . . . . . . 1 . . . disable_weapons 2 | . . . . . . . . . . . . . . . . . . . 1 . . 1 . . . . . reboot_system 19 | . . . . . . . . . 2 . 3 1 . 1 3 2 2 2 1 2 . . . . . . . overwrite_iff 24 | . . . . . . . . . . . 4 . 1 . 2 3 2 4 4 1 . . 3 . . . . formatsys_low 18 | . . . . . . . 1 . 2 . 1 . 1 . 4 . . . 2 . 3 . 1 2 1 . . formatsys_high 106 | . . . . . . . 2 4 10 4 3 4 1 9 8 8 7 8 11 5 8 6 5 1 2 . . Relay Couplers Released 111 | . . . . . . 5 1 14 . 12 . 9 . 12 2 18 2 7 3 9 4 13 . . . . . Machine Destruction 104 | . . . . . . 5 1 14 . 12 . 9 . 12 2 18 2 7 . 9 . 13 . . . . . Programmers 7 | . . . . . . . . . . . . . . . . . . . 3 . 4 . . . . . . Attached 86 | . . . . . . . 3 4 4 3 4 7 2 6 6 8 4 7 6 7 3 8 1 2 1 . . Fabnet Peak Effective % . | . . . . . . . . . . . . . . . . . . . . . . . . . . . . Robots Rewired 5 | . . . . . . 3 . . . . . . . . . . . . . . . 2 . . . . . Allies Hacked 12 | . . . . . . . . . 1 . . . . 1 2 . 1 . . . 7 . . . . . . Hacks Repelled 2 | . . . . . . . . . . . . . . 1 1 . . . . . . . . . . . . Allies | -11 -10 -10 -10 -9 -8 -8 -7 -7 -7 -7 -6 -6 -6 -6 -5 -5 -5 -5 -5 -5 -4 -4 -3 -3 -3 -2 -1 -------- Run | Jun Mat Min Exi Min Mat Gar Fac Gar Fac Gar Fac Gar Fac Gar Fac Gar Fac Gar Fac Gar Fac Gar Res Qua Sec Res Acc Total Allies 258 | . . 3 . . . 3 4 5 20 8 15 8 7 9 26 18 18 15 24 8 31 15 9 5 7 . . Largest Group 16 | . . 3 3 3 3 3 4 3 10 15 16 13 8 8 13 9 8 8 10 4 5 6 6 4 7 . . Highest-Rated Group 764 | . . 40 40 40 40 72 100 110 277 538 566 382 280 280 511 415 396 291 419 140 218 356 371 343 764 . . Highest-Rated Ally 343 | . . 16 16 16 16 24 32 62 40 95 95 95 95 72 137 137 137 65 137 41 68 116 116 343 343 . . Total Orders 279 | . . . . . . 4 10 10 23 45 33 7 6 8 37 9 2 5 12 9 22 12 8 11 6 . . STAY 129 | . . . . . . 2 5 5 8 17 13 3 3 4 15 6 1 3 5 5 13 8 3 5 5 . . ROAM 3 | . . . . . . . . . 2 . . . . . 1 . . . . . . . . . . . . FOLLOW 110 | . . . . . . 2 5 5 9 16 16 3 3 4 16 3 1 2 5 4 5 4 2 4 1 . . AID 27 | . . . . . . . . . 3 4 4 1 . . 5 . . . 1 . 4 . 3 2 . . . DROP 4 | . . . . . . . . . 1 2 . . . . . . . . 1 . . . . . . . . PICKUP 4 | . . . . . . . . . . 4 . . . . . . . . . . . . . . . . . COLLECT 2 | . . . . . . . . . . 2 . . . . . . . . . . . . . . . . . Ally Attacks 1536 | . . 6 . 4 34 . 24 42 53 43 176 71 14 60 247 89 115 50 238 32 87 67 37 18 29 . . Total Damage 45154 | . . 44 . 51 313 . 677 1139 1541 1521 5614 2713 572 1175 9297 2305 2572 833 6484 1038 2859 2475 774 397 760 . . Kills 330 | . . 1 . 3 3 . 6 13 11 15 43 19 5 10 64 15 22 6 46 6 16 17 5 1 3 . . Allies Corrupted 14 | . . . . . . . . . . . . . . . 2 1 3 1 1 1 5 . . . . . . Allies Melted 2 | . . . . . . . . . . . . . . . 1 . . . 1 . . . . . . . . Intel | -11 -10 -10 -10 -9 -8 -8 -7 -7 -7 -7 -6 -6 -6 -6 -5 -5 -5 -5 -5 -5 -4 -4 -3 -3 -3 -2 -1 ------- Run | Jun Mat Min Exi Min Mat Gar Fac Gar Fac Gar Fac Gar Fac Gar Fac Gar Fac Gar Fac Gar Fac Gar Res Qua Sec Res Acc Robot Analysis Total 1 | . 1 . . . . . . . . . . . . . . . . . . . . . . . . . . Derelict Logs Recovered 4 | . . 2 . 2 . . . . . . . . . . . . . . . . . . . . . . . Drone Launches . | . . . . . . . . . . . . . . . . . . . . . . . . . . . . Drone Recoveries . | . . . . . . . . . . . . . . . . . . . . . . . . . . . . Exploration | -11 -10 -10 -10 -9 -8 -8 -7 -7 -7 -7 -6 -6 -6 -6 -5 -5 -5 -5 -5 -5 -4 -4 -3 -3 -3 -2 -1 ------------- Run | Jun Mat Min Exi Min Mat Gar Fac Gar Fac Gar Fac Gar Fac Gar Fac Gar Fac Gar Fac Gar Fac Gar Res Qua Sec Res Acc Turns Passed 47883 | 65 1028 843 522 514 2622 1987 1561 1533 2129 1446 2851 1366 816 971 4273 1308 2311 880 1672 1237 4126 1363 846 3935 2432 736 2510 Spaces Moved 24581 | 34 520 508 322 313 957 957 807 746 1187 797 1600 734 445 536 2404 735 1372 468 1024 635 2039 790 490 1586 1117 280 1178 Core 1 | 1 . . . . . . . . . . . . . . . . . . . . . . . . . . . Treads 20694 | 28 520 508 322 313 814 . . 222 1187 797 1600 734 445 536 2404 735 1372 468 1024 635 2039 790 490 1586 1117 8 . Legs . | . . . . . . . . . . . . . . . . . . . . . . . . . . . . Wheels 3886 | 5 . . . . 143 957 807 524 . . . . . . . . . . . . . . . . . 272 1178 Hover . | . . . . . . . . . . . . . . . . . . . . . . . . . . . . Flight . | . . . . . . . . . . . . . . . . . . . . . . . . . . . . Fastest Speed 50 | 50 160 160 160 160 145 145 160 160 160 160 160 160 160 160 160 145 145 145 145 160 145 160 160 160 160 136 129 Average Speed 162 | 147 160 160 160 160 195 158 163 171 160 160 160 160 160 160 160 151 147 148 146 163 160 160 160 187 167 174 160 Slowest Speed 270 | 160 160 160 160 160 240 160 185 185 160 160 160 160 160 160 160 225 225 225 160 250 250 160 160 250 250 270 190 Overloaded Moves . | . . . . . . . . . . . . . . . . . . . . . . . . . . . . Propulsion Burnouts . | . . . . . . . . . . . . . . . . . . . . . . . . . . . . Robots Hopped . | . . . . . . . . . . . . . . . . . . . . . . . . . . . . Cave-ins Triggered . | . . . . . . . . . . . . . . . . . . . . . . . . . . . . Teleports 4 | . . . . . . . . . . . . . . . . . . . . . . . . . . . 4 Exploration Rate (%) 56 | 4 91 86 65 96 77 88 21 88 34 68 34 72 8 76 44 69 45 66 26 59 69 78 12 89 60 11 34 Regions Visited 27 Branch Regions 5 Pre-discovered Areas 5 | . 2 2 1 . . . . . . . . . . . . . . . . . . . . . . . . Known Exits Taken 14 | . 1 . . . 1 . 1 . 1 . 1 . 1 . 1 . 1 . 1 . 1 . 1 1 1 1 . Unknown Exits Taken 4 | 1 . 1 1 1 . . . . . . . . . . . . . . . . . . . . . . . Scrap Searched 1 | . . . . 1 . . . . . . . . . . . . . . . . . . . . . . . Spaces Dug 391 | . . . . . 8 57 5 10 3 4 39 . 3 1 30 . 26 . 6 . 68 . 4 50 32 3 42 Terrain Destroyed 823 | . . . . . 70 58 6 23 8 7 66 3 3 1 57 4 52 26 7 6 113 3 5 57 47 95 106 Melee 229 | . . . . . 3 21 5 10 3 4 9 . 3 1 14 . 17 . 6 . 43 . 4 23 31 3 29 Projectile 233 | . . . . . 43 1 1 13 5 3 2 2 . . . 2 9 1 1 6 40 3 1 34 16 39 11 AOE 360 | . . . . . 24 36 . . . . 55 . . . 43 2 26 25 . . 30 . . . . 53 66 Terrain Rammed . | . . . . . . . . . . . . . . . . . . . . . . . . . . . . Walls Destroyed . | . . . . . . . . . . . . . . . . . . . . . . . . . . . . Machines Disabled . | . . . . . . . . . . . . . . . . . . . . . . . . . . . . Actions | -11 -10 -10 -10 -9 -8 -8 -7 -7 -7 -7 -6 -6 -6 -6 -5 -5 -5 -5 -5 -5 -4 -4 -3 -3 -3 -2 -1 --------- Run | Jun Mat Min Exi Min Mat Gar Fac Gar Fac Gar Fac Gar Fac Gar Fac Gar Fac Gar Fac Gar Fac Gar Res Qua Sec Res Acc Total 30190 | 46 631 527 328 321 1422 1193 978 903 1351 922 1823 858 533 618 2759 882 1564 615 1165 800 2690 865 539 2369 1465 450 1573 Wait 2154 | . 23 7 . . 186 4 55 20 59 73 109 19 57 20 197 31 55 44 28 43 309 7 2 484 95 73 154 Move 24556 | 33 519 507 321 312 957 956 807 745 1186 796 1599 733 444 535 2403 734 1371 467 1023 634 2039 789 489 1585 1116 279 1177 Hop . | . . . . . . . . . . . . . . . . . . . . . . . . . . . . Pick Up 383 | 3 14 3 1 2 38 20 15 20 9 5 6 13 2 8 15 20 9 12 15 25 24 10 2 24 23 13 32 Fast Attach 102 | 7 3 . . . 8 4 . 1 1 . 1 1 . 2 2 2 3 2 2 3 20 2 1 16 12 4 5 Attach 293 | . 2 . . . 22 6 6 2 7 1 6 11 3 1 15 12 14 11 11 15 35 5 5 29 32 13 29 Detach 120 | 1 2 . . . 1 2 3 . 2 . 2 7 2 . 7 5 6 8 1 1 15 2 3 24 16 7 3 Swap 419 | 1 5 . 2 2 39 18 25 26 30 16 26 15 7 12 20 13 15 10 17 12 33 12 5 19 11 8 20 Drop 301 | 1 13 3 1 2 22 15 11 22 5 3 4 8 1 6 6 13 5 8 11 25 31 4 3 28 21 10 19 Fire 1303 | . 49 7 . 3 146 91 41 47 46 18 57 51 14 29 68 47 59 44 41 36 121 28 25 94 58 23 60 Melee 494 | . . . 3 . 3 45 14 12 4 8 13 . 3 5 22 4 27 5 13 6 60 5 4 65 79 20 74 Ram . | . . . . . . . . . . . . . . . . . . . . . . . . . . . . Kick . | . . . . . . . . . . . . . . . . . . . . . . . . . . . . Crush 8 | . 1 . . . . . . . . . . . . . 3 . . . 1 . 2 . . 1 . . . Escape Stasis 42 | . . . . . . 32 . 8 . . . . . . . . . 2 . . . . . . . . . Rewire 15 | . . . . . . . 1 . 2 2 . . . . 1 1 . 2 2 . 1 1 . . 2 . . Trap . | . . . . . . . . . . . . . . . . . . . . . . . . . . . . Miscellaneous . | . . . . . . . . . . . . . . . . . . . . . . . . . . . . Route ------- -11/Junkyard -10/Materials (discovered 3 exits: *Mat x2 / *Min) -10/Mines (discovered 3 exits: *Mat x2 / *Exi) -10/Exiles -9/Mines (discovered 2 exits: *Mat x2) -8/Materials (discovered 3 exits: *Fac x2 / Gar) -8/Garrison (discovered 3 exits: *Fac x3) -7/Factory (discovered 4 exits: *Fac x2 / *Sto / Gar) -7/Garrison (discovered 3 exits: *Fac x3) -7/Factory (discovered 4 exits: Fac / [*Low x2] / Gar) -7/Garrison (discovered 3 exits: *Fac x3) -6/Factory (discovered 3 exits: *Fac / *Low / Gar) -6/Garrison (discovered 4 exits: *Fac x3 / *Fac) -6/Factory -6/Garrison (discovered 3 exits: *Fac x3) -5/Factory (discovered 4 exits: *Fac / *Upp / Gar / Gar) -5/Garrison (discovered 3 exits: *Fac x3) -5/Factory (discovered 4 exits: *Fac x2 / *Ext / Gar) -5/Garrison (discovered 4 exits: *Fac x3 / *Fac) -5/Factory (discovered 3 exits: *Fac x2 / Gar) -5/Garrison (discovered 3 exits: *Fac x3) -4/Factory (discovered 6 exits: *Res x2 / *Upp x2 / Gar / Gar) -4/Garrison (discovered 3 exits: *Res x3) -3/Research (discovered 6 exits: Res x3 / Arm / *Qua x2) -3/Quarantine (discovered 3 exits: *Res / *Sec / Gar) -3/Section 7 -2/Research -1/Access To Fleet Rendezvous History --------- Turn | Location | Event 33 | -11/Junkyard | Discovered new exit (range 16) 66 | -11/Junkyard | Entered Materials 313 | -10/Materials | Build established: Mutant 385 | -10/Materials | Discovered new exit (range 9) 481 | -10/Materials | Discovered new exit (range 12) 675 | -10/Materials | Identified exit to Mines 768 | -10/Materials | Discovered new exit (range 10) 1094 | -10/Materials | Entered Mines 1097 | -10/Mines | Met a Derelict bent on vengeance 1100 | -10/Mines | Met a Derelict shopkeep closing up shop 1161 | -10/Mines | Discovered new exit (range 11) 1182 | -10/Mines | Assisted by bots powering up and referring to "LRC-V3" 1225 | -10/Mines | Identified exit to Materials 1453 | -10/Mines | Learned location of Storage (-7) 1631 | -10/Mines | Deemed a non-threat by the Exiles lab entrance 1631 | -10/Mines | Discovered new exit (range 5) 1937 | -10/Mines | Entered Exiles 1937 | -10/Exiles | Accompanied by 3 allies 1976 | -10/Exiles | Met 8R-AWN 2024 | -10/Exiles | Met EX-HEX 2108 | -10/Exiles | Met EX-DEC 2137 | -10/Exiles | Learned location of Zion (-6) 2328 | -10/Exiles | Met EX-BIN 2441 | -10/Exiles | Discovered new exit (range 14) 2459 | -10/Exiles | Entered Mines 2459 | -9/Mines | Accompanied by 3 allies 2474 | -9/Mines | Learned Materials trap positions 2504 | -9/Mines | Discovered new exit (range 8) 2537 | -9/Mines | Found a hidden stash of uninstalled traps 2582 | -9/Mines | Found a damaged Exp. Sensor Array with a note attached 2586 | -9/Mines | Found Prototype Device 2734 | -9/Mines | Learned 4 Materials zone layouts 2774 | -9/Mines | Discovered new exit (range 6) 2973 | -9/Mines | Entered Materials 2973 | -8/Materials | Accompanied by 3 allies 2973 | -8/Materials | Evolved 4 slots: Utility x4 2975 | -8/Materials | Loaded intel: 15 trap records 3167 | -8/Materials | Identified Exp. Sensor Array 3628 | -8/Materials | Build established: Scavenger-Mutant 3704 | -8/Materials | Discovered new exit (range 13) 4324 | -8/Materials | Discovered new exit (range 3) 4336 | -8/Materials | Build established: Mutant 4679 | -8/Materials | Repaired Hrd. Medium Armor Plating 5184 | -8/Materials | Lost 8 parts (1p2n2u3w) 5373 | -8/Materials | First assault squad dispatched 5397 | -8/Materials | Garrison activated, responded to threat 5473 | -8/Materials | Destroyed 8 combat bots 5510 | -8/Materials | Lost 7 parts (1p2n3u1w) 5516 | -8/Materials | Core integrity fell below 50% 5595 | -8/Materials | Identified exit to Garrison 5595 | -8/Materials | Entered Garrison 5714 | -8/Garrison | Triggered checkpoint 5870 | -8/Garrison | Found Powered Armor 5873 | -8/Garrison | Found Powered Armor 5897 | -8/Garrison | Build established: Scavenger-Mutant 5951 | -8/Garrison | Triggered checkpoint 6015 | -8/Garrison | Lost 3 parts (2n1w) 6072 | -8/Garrison | Triggered checkpoint 6079 | -8/Garrison | Core integrity fell below 20% 6156 | -8/Garrison | Discovered new exit (range 10) 6382 | -8/Garrison | Discovered new exit (range 10) 6414 | -8/Garrison | Triggered checkpoint 6799 | -8/Garrison | Discovered new exit (range 11) 6816 | -8/Garrison | Triggered checkpoint 7194 | -8/Garrison | Discovered new exit (range 60) 7194 | -8/Garrison | Discovered new exit (range 57) 7194 | -8/Garrison | Discovered new exit (range 31) 7294 | -8/Garrison | Installed Relay Interface Framework 7394 | -8/Garrison | Triggered checkpoint 7487 | -8/Garrison | Expanded RIF knowledge: Coupler Efficiency 7508 | -8/Garrison | Garrison Relay disabled 7582 | -8/Garrison | Entered Factory 7582 | -7/Factory | Accompanied by 3 allies 7582 | -7/Factory | Evolved 2 slots: Utility x2 7623 | -7/Factory | Discovered new exit (range 14) 7647 | -7/Factory | Identified exit to Factory 7665 | -7/Factory | Discovered new exit (range 11) 7681 | -7/Factory | Identified exit to Storage 8605 | -7/Factory | Build established: Scavenger-Assassin 8632 | -7/Factory | Discovered exit to Factory (range 15) 8955 | -7/Factory | Build established: Scavenger-Mutant 9143 | -7/Factory | Identified exit to Garrison 9143 | -7/Factory | Entered Garrison 9143 | -7/Garrison | Accompanied by 3 allies 9226 | -7/Garrison | Triggered checkpoint 9517 | -7/Garrison | Build established: Bothacker-Mutant 9556 | -7/Garrison | Triggered checkpoint 9680 | -7/Garrison | Triggered checkpoint 9790 | -7/Garrison | Expanded RIF knowledge: Command Fork 9827 | -7/Garrison | Triggered checkpoint 9834 | -7/Garrison | Garrison Relay disabled 9834 | -7/Garrison | Garrison Relay disabled 9842 | -7/Garrison | Triggered checkpoint 10073 | -7/Garrison | Discovered new exit (range 10) 10120 | -7/Garrison | Triggered checkpoint 10366 | -7/Garrison | Triggered checkpoint 10410 | -7/Garrison | Triggered checkpoint 10478 | -7/Garrison | Garrison Relay disabled 10530 | -7/Garrison | Discovered new exit (range 10) 10543 | -7/Garrison | Identified exit to Factory 10655 | -7/Garrison | Discovered exit to Factory (range 12) 10655 | -7/Garrison | Discovered exit to Factory (range 41) 10655 | -7/Garrison | Discovered exit to Factory (range 70) 10676 | -7/Garrison | Entered Factory 10676 | -7/Factory | Accompanied by 1 ally 11197 | -7/Factory | Repaired Powered Armor 11383 | -7/Factory | P-60 Hacker assimilated allied Guardian 4e 11455 | -7/Factory | Discovered new exit (range 7) 11755 | -7/Factory | Garrison activated, responded to threat 12121 | -7/Factory | Discovered exit to Factory (range 63) 12121 | -7/Factory | Discovered new exit (range 40) 12189 | -7/Factory | Fabricated P-60 Hacker? 12321 | -7/Factory | Fabricated I-36 Angel? 12330 | -7/Factory | Found Prototype Launcher 12331 | -7/Factory | Identified Rocket Array 12801 | -7/Factory | Identified exit to Garrison 12805 | -7/Factory | Entered Garrison 12805 | -7/Garrison | Accompanied by 10 allies 12908 | -7/Garrison | Expanded RIF knowledge: Zone Cloak 13088 | -7/Garrison | Triggered checkpoint 13145 | -7/Garrison | Discovered exit to Factory (range 10) 13184 | -7/Garrison | Rescued a captive Derelict 13210 | -7/Garrison | Triggered checkpoint 13211 | -7/Garrison | Garrison Relay disabled 13330 | -7/Garrison | Triggered checkpoint 13342 | -7/Garrison | Triggered checkpoint 13492 | -7/Garrison | Discovered exit to Factory (range 8) 13516 | -7/Garrison | Build established: Botlord-Mutant 13546 | -7/Garrison | Triggered checkpoint 13586 | -7/Garrison | Expanded RIF knowledge: Structural Interface 13601 | -7/Garrison | Garrison Relay disabled 13822 | -7/Garrison | Triggered checkpoint 13836 | -7/Garrison | Triggered checkpoint 13879 | -7/Garrison | Found embedded Infiltrators 13892 | -7/Garrison | Garrison Relay disabled 14004 | -7/Garrison | Discovered exit to Factory (range 13) 14251 | -7/Garrison | Entered Factory 14251 | -6/Factory | Accompanied by 15 allies 14251 | -6/Factory | Evolved 2 slots: Utility x2 14338 | -6/Factory | Discovered new exit (range 16) 14368 | -6/Factory | Identified exit to Lower Caves 14665 | -6/Factory | Garrison activated, responded to threat 15089 | -6/Factory | Garrison activated, responded to threat 15787 | -6/Factory | Discovered new exit (range 8) 15802 | -6/Factory | Identified exit to Factory 16282 | -6/Factory | Fabricated P-60 Hacker? 16350 | -6/Factory | Build established: Commander-Mutant 16701 | -6/Factory | First assault squad dispatched 16843 | -6/Factory | Fabricated P-60 Hacker? 17028 | -6/Factory | Garrison activated, responded to threat 17054 | -6/Factory | Identified exit to Garrison 17102 | -6/Factory | Entered Garrison 17102 | -6/Garrison | Accompanied by 13 allies 17180 | -6/Garrison | Triggered checkpoint 17184 | -6/Garrison | Discovered exit to Factory (range 62) 17184 | -6/Garrison | Discovered exit to Factory (range 85) 17184 | -6/Garrison | Discovered exit to Factory (range 71) 17184 | -6/Garrison | Discovered new exit (range 56) 17210 | -6/Garrison | Garrison Relay disabled 17308 | -6/Garrison | Spotted B-75 Beast 17345 | -6/Garrison | Triggered checkpoint 17346 | -6/Garrison | Triggered checkpoint 17400 | -6/Garrison | Assimilated Beast 5a with formatsys_high 17409 | -6/Garrison | Triggered checkpoint 17426 | -6/Garrison | Build established: Botlord-Mutant 17682 | -6/Garrison | Triggered checkpoint 17781 | -6/Garrison | Expanded RIF knowledge: Autooverride 17798 | -6/Garrison | Garrison Relay disabled 18024 | -6/Garrison | Found embedded Infiltrators 18032 | -6/Garrison | Triggered checkpoint 18120 | -6/Garrison | Found Fusion Bomb Launcher 18416 | -6/Garrison | Triggered checkpoint 18458 | -6/Garrison | Identified exit to Factory 18468 | -6/Garrison | Entered Factory 18468 | -6/Factory | Accompanied by 4 allies 18818 | -6/Factory | First assault squad dispatched 19039 | -6/Factory | Identified exit to Garrison 19190 | -6/Factory | Fabricated P-60 Hacker (x2) 19284 | -6/Factory | Entered Garrison 19284 | -6/Garrison | Accompanied by 8 allies 19338 | -6/Garrison | Learned Factory security intel 19444 | -6/Garrison | Triggered checkpoint 19455 | -6/Garrison | Triggered checkpoint 19519 | -6/Garrison | Garrison Relay disabled 19582 | -6/Garrison | Triggered checkpoint 19657 | -6/Garrison | Garrison Relay disabled 19804 | -6/Garrison | Expanded RIF knowledge: Signal Jamming 19828 | -6/Garrison | Discovered exit to Factory (range 13) 19997 | -6/Garrison | Discovered exit to Factory (range 12) 19997 | -6/Garrison | Discovered exit to Factory (range 43) 19997 | -6/Garrison | Discovered exit to Factory (range 69) 20046 | -6/Garrison | Triggered checkpoint 20199 | -6/Garrison | Garrison Relay disabled 20255 | -6/Garrison | Entered Factory 20255 | -5/Factory | Accompanied by 6 allies 20255 | -5/Factory | Evolved 2 slots: Utility x2 20504 | -5/Factory | Discovered new exit (range 13) 20544 | -5/Factory | Identified exit to Upper Caves 20875 | -5/Factory | Identified exit to Garrison 20922 | -5/Factory | Garrison activated, responded to threat 21023 | -5/Factory | Fabricated B-48 Gladiator? 21290 | -5/Factory | Discovered new exit (range 10) 21305 | -5/Factory | Identified exit to Factory 21643 | -5/Factory | Repaired Imp. Heavy Treads? 21897 | -5/Factory | Garrison activated, responded to threat 22098 | -5/Factory | Spotted B-75 Beast 23190 | -5/Factory | Fabricated Adv. Hacking Suite (x1) 23255 | -5/Factory | First assault squad dispatched 23461 | -5/Factory | Fabricated P-70 Sage (x2) 24336 | -5/Factory | Fabricated Adv. System Shield (x1) 24400 | -5/Factory | Fabricated P-70 Sage (x2) 24518 | -5/Factory | Identified exit to Garrison 24528 | -5/Factory | Entered Garrison 24528 | -5/Garrison | Accompanied by 7 allies 24550 | -5/Garrison | Garrison Relay disabled 24612 | -5/Garrison | Triggered checkpoint 24642 | -5/Garrison | Garrison Relay disabled 24832 | -5/Garrison | Triggered checkpoint 24858 | -5/Garrison | Triggered checkpoint 24980 | -5/Garrison | Triggered checkpoint 25021 | -5/Garrison | Spotted B-75 Beast 25028 | -5/Garrison | Discovered new exit (range 46) 25028 | -5/Garrison | Discovered new exit (range 24) 25028 | -5/Garrison | Discovered new exit (range 69) 25032 | -5/Garrison | Garrison Relay disabled 25238 | -5/Garrison | Expanded RIF knowledge: Watcher Feeds 25263 | -5/Garrison | Found embedded Infiltrators 25282 | -5/Garrison | Garrison Relay disabled 25396 | -5/Garrison | Triggered checkpoint 25532 | -5/Garrison | Destroyed B-75 Beast 25561 | -5/Garrison | Found Relay Coupler [Proto] 25564 | -5/Garrison | Found Relay Coupler [Proto] 25566 | -5/Garrison | Found Relay Coupler [Proto] 25635 | -5/Garrison | Rescued a captive Derelict 25636 | -5/Garrison | Rescued a captive Derelict 25642 | -5/Garrison | Identified exit to Factory 25836 | -5/Garrison | Entered Factory 25836 | -5/Factory | Accompanied by 5 allies 26136 | -5/Factory | First assault squad dispatched 26381 | -5/Factory | Discovered exit to Factory (range 14) 27203 | -5/Factory | Discovered exit to Factory (range 20) 27472 | -5/Factory | P-70 Sage assimilated allied Sentinel 6h 27505 | -5/Factory | Cargo convoy interrupted 27627 | -5/Factory | Discovered new exit (range 7) 27639 | -5/Factory | Identified exit to Extension 27931 | -5/Factory | Identified exit to Garrison 28147 | -5/Factory | Entered Garrison 28147 | -5/Garrison | Accompanied by 2 allies 28188 | -5/Garrison | Discovered exit to Factory (range 62) 28188 | -5/Garrison | Discovered exit to Factory (range 48) 28188 | -5/Garrison | Discovered exit to Factory (range 38) 28188 | -5/Garrison | Discovered new exit (range 78) 28202 | -5/Garrison | Triggered checkpoint 28245 | -5/Garrison | Learned Factory security intel 28255 | -5/Garrison | Garrison Relay disabled 28388 | -5/Garrison | Triggered checkpoint 28567 | -5/Garrison | Expanded RIF knowledge: Robot Detection 28747 | -5/Garrison | Garrison Relay disabled 29025 | -5/Garrison | Identified exit to Factory 29027 | -5/Garrison | Entered Factory 29027 | -5/Factory | Accompanied by 8 allies 29406 | -5/Factory | Fabricated P-70 Sage? 29854 | -5/Factory | Discovered exit to Factory (range 14) 29934 | -5/Factory | Garrison activated, responded to threat 30172 | -5/Factory | Discovered exit to Factory (range 12) 30193 | -5/Factory | Cargo convoy interrupted 30661 | -5/Factory | Identified exit to Garrison 30699 | -5/Factory | Entered Garrison 30864 | -5/Garrison | Triggered checkpoint 30920 | -5/Garrison | Garrison Relay disabled 31022 | -5/Garrison | Triggered checkpoint 31089 | -5/Garrison | Discovered exit to Factory (range 59) 31089 | -5/Garrison | Discovered exit to Factory (range 50) 31089 | -5/Garrison | Discovered exit to Factory (range 10) 31303 | -5/Garrison | Expanded RIF knowledge: Autoassimilate 31464 | -5/Garrison | Triggered checkpoint 31564 | -5/Garrison | Expanded RIF knowledge: Patrol Navigation 31898 | -5/Garrison | Garrison Relay disabled 31936 | -5/Garrison | Entered Factory 31936 | -4/Factory | Evolved 2 slots: Utility x2 31975 | -4/Factory | Found Prototype Hackware 32228 | -4/Factory | Discovered new exit (range 12) 32681 | -4/Factory | Discovered new exit (range 4) 32812 | -4/Factory | Spotted B-86 Titan 32896 | -4/Factory | Identified exit to Garrison 32936 | -4/Factory | First assault squad dispatched 33048 | -4/Factory | Found Prototype Slashing Weapon 33048 | -4/Factory | Identified Centrium Greatsword 33065 | -4/Factory | Fabricated P-70 Sage? 33141 | -4/Factory | Sage 7b assimilated hostile B-60 Warrior 33306 | -4/Factory | Found Prototype Processor 33456 | -4/Factory | Identified Exp. System Shield 33687 | -4/Factory | System corruption reached 10% 33694 | -4/Factory | P-70 Sage assimilated allied Artificer 7a 34239 | -4/Factory | Fabricated P-70 Sage? 34940 | -4/Factory | Identified Exp. Signal Interpreter 35170 | -4/Factory | Repaired Lyr. Medium Armor Plating? 35289 | -4/Factory | Repaired Lyr. Medium Armor Plating? 35433 | -4/Factory | Repaired Adv. Heavy Siege Treads? 35476 | -4/Factory | Fabricated I-36 Angel (x1) 35518 | -4/Factory | Fabricated P-70 Sage? 35705 | -4/Factory | Repaired Cld. Phase Cannon? 35808 | -4/Factory | Discovered new exit (range 17) 35815 | -4/Factory | Identified exit to Research 35869 | -4/Factory | Discovered new exit (range 3) 35872 | -4/Factory | Identified exit to Upper Caves 36062 | -4/Factory | Identified exit to Garrison 36062 | -4/Factory | Entered Garrison 36062 | -4/Garrison | Accompanied by 1 ally 36156 | -4/Garrison | Garrison Relay disabled 36230 | -4/Garrison | Spotted B-86 Titan 36244 | -4/Garrison | Triggered checkpoint 36252 | -4/Garrison | Assimilated Titan 7a with formatsys_high 36260 | -4/Garrison | Triggered checkpoint 36278 | -4/Garrison | Triggered checkpoint 36288 | -4/Garrison | Triggered checkpoint 36362 | -4/Garrison | Discovered exit to Research (range 11) 36546 | -4/Garrison | Spotted B-86 Titan 36562 | -4/Garrison | Discovered exit to Research (range 10) 36606 | -4/Garrison | Triggered checkpoint 36642 | -4/Garrison | Discovered exit to Research (range 37) 36642 | -4/Garrison | Discovered exit to Research (range 32) 36642 | -4/Garrison | Discovered exit to Research (range 51) 36693 | -4/Garrison | Garrison Relay disabled 36810 | -4/Garrison | Spotted Executioner 36810 | -4/Garrison | Spotted Executioner 36852 | -4/Garrison | Triggered checkpoint 36921 | -4/Garrison | Garrison Relay disabled 37123 | -4/Garrison | Expanded RIF knowledge: Autoassimilate 37425 | -4/Garrison | Entered Research 37425 | -3/Research | Accompanied by 5 allies 37425 | -3/Research | Evolved 2 slots: Utility x1, Weapon x1 37639 | -3/Research | Found Exp. System Shield 37916 | -3/Research | Identified exit to Research 38181 | -3/Research | Identified exit to Armory 38181 | -3/Research | Identified exit to Quarantine 38271 | -3/Research | Entered Quarantine 38271 | -3/Quarantine | Accompanied by 3 allies 38296 | -3/Quarantine | Found Alien Artifact 38328 | -3/Quarantine | Identified Phase Redirector 38445 | -3/Quarantine | Found Alien Reactor 38475 | -3/Quarantine | Identified Matter Drive 38732 | -3/Quarantine | Found Alien Energy Cannon 38786 | -3/Quarantine | Found Alien Artifact 38900 | -3/Quarantine | Identified Core Cannon 38900 | -3/Quarantine | Identified Terrabomb 39593 | -3/Quarantine | System corruption reached 10% 39681 | -3/Quarantine | Found Alien Impact Weapon 39702 | -3/Quarantine | Identified exit to Garrison 39799 | -3/Quarantine | Found Alien Artifact 40208 | -3/Quarantine | Identified Phase Armor 40405 | -3/Quarantine | Repaired Adv. Heavy Siege Treads 40434 | -3/Quarantine | Repaired Hvy. Linear Accelerator? 40938 | -3/Quarantine | Identified Core Stripper 40946 | -3/Quarantine | Found Alien Slashing Weapon 40946 | -3/Quarantine | Identified Sigix Broadsword 41188 | -3/Quarantine | Repaired System Restoration Module 41263 | -3/Quarantine | Found Adv. Micro-nuke Launcher 41372 | -3/Quarantine | Repaired Broken System Restoration Module 41452 | -3/Quarantine | Found Alien Artifact 41459 | -3/Quarantine | Found Alien Artifact 41680 | -3/Quarantine | Identified Hpw. Transdimensional Reconstructor 41680 | -3/Quarantine | Identified Transdimensional Reconstructor 42060 | -3/Quarantine | Spotted Fortress 42069 | -3/Quarantine | Assimilated Fortress with formatsys_high 42193 | -3/Quarantine | Discovered new exit (range 6) 42204 | -3/Quarantine | Identified exit to Section 7 42206 | -3/Quarantine | Entered Section 7 42206 | -3/Section 7 | Accompanied by 1 ally 42439 | -3/Section 7 | Found Alien Artifact 42706 | -3/Section 7 | Identified Integrated Reactor 42760 | -3/Section 7 | Installed Integrated Reactor, increased core energy generation (+10) 42883 | -3/Section 7 | Discovered exit to Research (range 6) 43013 | -3/Section 7 | Spotted Executioner 43013 | -3/Section 7 | Spotted Executioner 43018 | -3/Section 7 | Assimilated Executioner with formatsys_high 43030 | -3/Section 7 | Allies destroyed Executioner 43092 | -3/Section 7 | Found Hpw. Transdimensional Reconstructor 43224 | -3/Section 7 | Spotted B-99 Colossus 43322 | -3/Section 7 | Found Alien Artifact 43378 | -3/Section 7 | Found Alien Artifact 43379 | -3/Section 7 | Identified LRC Insulator 43379 | -3/Section 7 | Installed LRC Insulator, gained EM resistance (25) 43631 | -3/Section 7 | Found Alien Artifact 43631 | -3/Section 7 | Identified Core Reset Matrix 43631 | -3/Section 7 | Identified Integrated Dissipator 43631 | -3/Section 7 | Used Core Reset Matrix 43635 | -3/Section 7 | Sensed 16 artifacts in vicinity 43648 | -3/Section 7 | Found Core Reset Matrix 43689 | -3/Section 7 | Installed Integrated Dissipator, increased core heat dissipation (+20) 43855 | -3/Section 7 | Found Matter Drive 43922 | -3/Section 7 | Found Transdimensional Reconstructor 43924 | -3/Section 7 | Build established: Hacker-Assassin 44098 | -3/Section 7 | Discovered exit to Research (range 22) 44210 | -3/Section 7 | Spotted S7 Guard 44271 | -3/Section 7 | Core integrity fell below 50% 44287 | -3/Section 7 | Destroyed S7 Guard 44295 | -3/Section 7 | Lost 3 parts (1n1u1w) 44309 | -3/Section 7 | Found Integrated Thermoelectric Network 44309 | -3/Section 7 | Installed Integrated Thermoelectric Network, gained heat-energy exchange potential 44331 | -3/Section 7 | Spotted Alpha 7 44638 | -3/Section 7 | Entered Research 44638 | -2/Research | Evolved 2 slots: Propulsion x2 45011 | -2/Research | Spotted B-90 Cyclops 45255 | -2/Research | Discovered new exit (range 19) 45373 | -2/Research | Identified exit to Access 45374 | -2/Research | Entered Access 45374 | -1/Access | Evolved 2 slots: Power x1, Utility x1 45673 | -1/Access | Warped through subspace 46152 | -1/Access | Imp. Hacking Suite fried by hacking feedback 46341 | -1/Access | Found Unknown Device 46347 | -1/Access | Identified Antimissile System 46465 | -1/Access | Warped through subspace 46658 | -1/Access | Build established: Alien-Gladiator 46999 | -1/Access | Found Unknown Device 47007 | -1/Access | Identified Quantum Capacitor 47216 | -1/Access | Identified exit to Surface 47468 | -1/Access | Warped through subspace 47473 | -1/Access | Spotted B-99 Colossus 47477 | -1/Access | Core integrity fell below 50% 47486 | -1/Access | Warped through subspace 47629 | -1/Access | Lost 12 parts (2p2n5u3w) 47718 | -1/Access | System corruption reached 10% 47884 | *** | Heading to fleet! Last Messages --------------- 47807_ Slug penetrates R-10 Processor. 47828_ Acquired Unknown Hackware. 47828_ Identified System Shield. 47834_ W-44 Eye distress signal jammed. 47835_ Penetrated by Slug. 47836_ Slug penetrates Wall. 47838_ Penetrated by Slug. 47839_ System corrupted: Matter fused (-9). 47839_ Y-72 Warden destroyed. 47844_ Acquired Unknown Protection. 47844_ Identified Hvy. Armor Plating. 47847_ Acquired Adv. Heat Sink. 47849_ Acquired 75 matter. 47851_ Acquired 2 matter. 47853_ Acquired 4 matter. 47862_ System corrupted: Matter fused (-9). 47863_ R-10 Processor collects Unknown Treads. 47874_ ALERT: Rogue bot located, Programmers report to Access Zone 4T. 47878_ Main Access Shell breached. 47880_ U-05 Engineer builds a Wall. Map ----- +----------------------------------------------------+ | ???????????? ??????????????????????????????????? | | ???????????? ??????????????????????????????????? | | ??????????? ??????????????????????????????????? | | ??????????? ??????????????????????????????????? | | ???????????# ??????????????????????????????????? | | ???????????# ??????????????????????????????????? | | ???????????# #??????????????????????????????????? | | ???????????# #??????????????????????????????????? | | ???????????# #??????????????????????????????????? | | ???????????# #??????????????????????????????????? | | ???????????# #??????????????????????????????????? | | ???????????+ ??????????????????????????????????? | | ???????????# ??????????????????????????????????? | | ???????????# #??????????????????????????????????? | | ???????????# #??????????????????????????????????? | | ???????????# #??????????????????????????????????? | | ???????????+ #??????????????????????????????????? | | ???????????# #??????????????????????????????????? | | ???????????# #??????????????????????????????????? | | ?########### %##?????????????????????????????????? | | ?# # #????""""""""""""?????????????????? | | ?# / % ###### #?????????????????? | | ?# # # ; ??????????????????? | | ?# # # ; """"""????????????????????? | | ?# ####"" ; "????????????????????? | | ?# #??######## " @" "????????????????????? | | ?# #?????????# " "" "????????????????????? | | ?# #?????????# " "????????????????????? | | ?# #?????????# """"""????????????????????? | | ?#####+####?????????# ?????????????????????????? | | ?????# #????????????#"""?????????????????????????? | | ?????# #?????????????????????????????????????????? | | ##???# #?????????????????????????????????????????? | | ???# #???????????????"""""?????????????????????? | | ???# #?????????????? ?????????????????????? | | #### #?????????????? ?????????????????????? | | #######???????? ?????????????????????? | | +????????? ?????????????????????? | | ##+###########????? ?????????????????????? | | # #????? ?????????????????????? | | # #????? ?????????????????????? | | # #?????# ?????????????????????? | | ###"# #?????# #????????????????????? | | " #?????# #????????????????????? | | ##############?????# #????????????????????? | | #??????????????????# #????????????????????? | | #??????????????????# #????????????????????? | | #??????????????????# #????????????????????? | | #??????????????????# #????????????????????? | | #??????????????????# #????????????????????? | +----------------------------------------------------+ Best States ------------- Heat Dissipation 117 Energy Generation 57 Energy Capacity 550 Matter Stores 300 Matter Capacity 300 Sight Range 23 Robot Scan Range 20 Terrain Scan Density 10 Jamming Range 14 Armor Coverage 1200 Resistance: KI 30 Resistance: TH 30 Resistance: EM 25 Power Shielding 33 Propulsion Shielding 66 Point Defense Rating 240 Evasion (%) 40 Targeting Accuracy 8 Melee Accuracy 8 Target Analysis 8 Recoil Reduction 2 Offensive Hacking 38 Defensive Hacking 42 Relay Coupler Types 9 Relay Coupler Value 274 Authchip Count 3 Item Schematics ----------------- Exp. Heat Sink | -3/Section 7 | Scanalyzed Helical Railgun | -3/Section 7 | Scanalyzed Robot Schematics ------------------ None Fabricated ------------ P-60 Hacker | x2 | -7/Factory | Authchip I-36 Angel | x1 | -7/Factory | Authchip P-60 Hacker | x2 | -6/Factory | Authchip P-60 Hacker | x2 | -6/Factory P-60 Hacker | x2 | -6/Factory B-48 Gladiator | x3 | -5/Factory | Preloaded, Authchip Adv. Hacking Suite | x1 | -5/Factory | Authchip P-70 Sage | x2 | -5/Factory | Authchip Adv. System Shield | x1 | -5/Factory | Authchip P-70 Sage | x2 | -5/Factory P-70 Sage | x2 | -5/Factory P-70 Sage | x2 | -4/Factory | Authchip P-70 Sage | x2 | -4/Factory I-36 Angel | x1 | -4/Factory | Authchip P-70 Sage | x2 | -4/Factory Alien Tech Used ----------------- Phase Redirector Phase Armor Core Stripper Sigix Broadsword Integrated Reactor Core Cannon LRC Insulator Core Reset Matrix Integrated Dissipator Integrated Thermoelectric Network Transdimensional Reconstructor High-powered Transdimensional Reconstructor Matter Drive Achievements -------------- None Challenges ------------ None Game ------ Seed AlloyLightpackAirjet Manual? 0 Play Time 10:01:01 Cumulative 455.3 hours Start 2023.03.11 @ 02:04:41 End 2023.03.12 @ 04:50:58 Sessions 5 Manual Loads 0 Difficulty Rogue Special Mode None Game No. 114 Rogue 114 Adventurer 0 Explorer 0 Win Type 2 Total 21 Types 15/1/4/0/0/0/0/1/0 Lore% 90 Gallery% 92 Achievement% 78 Wizard Run 0 Options --------- ASCII 0 Keyboard 0 Movement Numpad Keybinds 0 Fullscreen 1 Font 14/SmallcapsGlow Map View 84x54 Tactical HUD 1 Map Filters NONE Filters NONE Steam 1 RUN: 04c759b1-f17b-43ad-a928-a580f57fcd1d